{"text_format":"1","workbook":"xlsx","n_sheets":3,"sheets":["pacijent","kartoni","cenovnik-terapija"],"not_rendered":{"charts":0,"images":2,"macros":1,"external_links":0,"defined_names":12,"comments":2,"pivot_tables":0},"unopened":[],"bounds":{"document_bytes":16777216,"sheet_cells":100000,"rows_first":2000,"rows_last":500,"rows_between":2000,"halvings":0,"cell_chars":16384,"cell_head_chars":4096},"cells_cut":0,"cells_raw":0,"read":"whole","date_system":"1900"}

{"sheet":"pacijent","index":0,"n_rows":1000,"n_cols":12,"rows_kept":1000,"cut":false,"hidden":false,"merged":[]}
[null,null,null,null,null,null,null,null,null,null,{"$f":"TODAY()","v":"2021-04-24"}]
[null,null,null,null,null,null,null,null,null,null,{"$f":"NOW()","v":"2021-04-24T13:29:50.850"}]
[]
[]
[null,"red.br","*","Godina","Datum","Ime","Prezime","Datum rođenja","Kontakt telefon","e-mail","Adresa stanovanja","Grad"]
[null,{"$f":"IF(D6<>\"\",1,\"\")","v":1},{"$f":"IF(D6<>\"\",\"st\",\"\")","v":"st"},21,"2021-04-10","Saša","Petrović","1967-10-23",381064148494,"sale@gmail.com","Surčinski put ","Beograd"]
[null,{"$f":"IF(D7<>\"\",B6+1,\"\")","v":2},{"$f":"IF(D7<>\"\",\"st\",\"\")","v":"st"},21,"2021-04-12","rasa","jovanov","1969-04-26",3810641234567]
[null,3,{"$f":"IF(D8<>\"\",\"st\",\"\")","v":"st"},21,"2021-04-16","Miodrag","Podunavac","2020-01-01",38106412345678,null,"Dr Ivana Ribara","Beograd"]
[null,4,"st",21,null,null,null,null,3810641234567]
[null,5,{"$f":"IF(D10<>\"\",\"st\",\"\")","v":"st"},21]
[null,"",""]
[null,"",""]
[null,"",""]
[null,"",""]
[null,"",""]
[null,"",""]
[null,"",""]
[null,"",""]
[null,"",""]
[null,"",""]
[null,"",""]
[null,"",""]
[null,"",""]
[null,"",""]
[null,"",""]
[null,"",""]
[null,"",""]
[null,"",""]
[null,"",""]
[null,"",""]
[null,"",""]
[null,"",""]
[null,"",""]
[null,"",""]
[null,"",""]
[null,"",""]
[null,"",""]
[null,"",""]
[null,"",""]
[null,"",""]
[null,"",""]
[null,"",""]
[null,"",""]
[null,"",""]
[null,"",""]
[null,"",""]
[null,"",""]
[null,"",""]
[null,"",""]
[null,"",""]
[null,"",""]
[null,"",""]
[null,"",""]
[null,"",""]
[null,"",""]
[null,"",""]
[null,"",""]
[null,"",""]
[null,"",""]
[null,"",""]
[null,"",""]
[null,"",""]
[null,"",""]
[null,"",""]
[null,"",""]
[null,"",""]
[null,"",""]
[null,"",""]
[null,"",""]
[null,"",""]
[null,{"$f":"IF(D71<>\"\",B70+1,\"\")","v":""},""]
[null,"",""]
[null,"",""]
[null,"",{"$f":"IF(D74<>\"\",\"st\",\"\")","v":""}]
[null,"",""]
[null,"",""]
[null,"",""]
[null,"",""]
[null,"",""]
[null,"",""]
[null,"",""]
[null,"",""]
[null,"",""]
[null,"",""]
[null,"",""]
[null,"",""]
[null,"",""]
[null,"",""]
[null,"",""]
[null,"",""]
[null,"",""]
[null,"",""]
[null,"",""]
[null,"",""]
[null,"",""]
[null,"",""]
[null,"",""]
[null,"",""]
[null,"",""]
[null,"",""]
[null,"",""]
[null,"",""]
[null,"",""]
[null,"",""]
[null,"",""]
[null,"",""]
[null,"",""]
[null,"",""]
[null,"",""]
[null,"",""]
[null,"",""]
[null,"",""]
[null,"",""]
[null,"",""]
[null,"",""]
[null,"",""]
[null,"",""]
[null,"",""]
[null,"",""]
[null,"",""]
[null,"",""]
[null,"",""]
[null,"",""]
[null,"",""]
[null,"",""]
[null,"",""]
[null,"",""]
[null,"",""]
[null,"",""]
[null,"",""]
[null,"",""]
[null,"",""]
[null,"",""]
[null,"",""]
[null,{"$f":"IF(D135<>\"\",B134+1,\"\")","v":""},""]
[null,"",""]
[null,"",""]
[null,"",{"$f":"IF(D138<>\"\",\"st\",\"\")","v":""}]
[null,"",""]
[null,"",""]
[null,"",""]
[null,"",""]
[null,"",""]
[null,"",""]
[null,"",""]
[null,"",""]
[null,"",""]
[null,"",""]
[null,"",""]
[null,"",""]
[null,"",""]
[null,"",""]
[null,"",""]
[null,"",""]
[null,"",""]
[null,"",""]
[null,"",""]
[null,"",""]
[null,"",""]
[null,"",""]
[null,"",""]
[null,"",""]
[null,"",""]
[null,"",""]
[null,"",""]
[null,"",""]
[null,"",""]
[null,"",""]
[null,"",""]
[null,"",""]
[null,"",""]
[null,"",""]
[null,"",""]
[null,"",""]
[null,"",""]
[null,"",""]
[null,"",""]
[null,"",""]
[null,"",""]
[null,"",""]
[null,"",""]
[null,"",""]
[null,"",""]
[null,"",""]
[null,"",""]
[null,"",""]
[null,"",""]
[null,"",""]
[null,"",""]
[null,"",""]
[null,"",""]
[null,"",""]
[null,"",""]
[null,"",""]
[null,"",""]
[null,"",""]
[null,"",""]
[null,"",""]
[null,{"$f":"IF(D199<>\"\",B198+1,\"\")","v":""},""]
[null,"",""]
[null,"",""]
[null,"",{"$f":"IF(D202<>\"\",\"st\",\"\")","v":""}]
[null,"",""]
[null,"",""]
[null,"",""]
[null,"",""]
[null,"",""]
[null,"",""]
[null,"",""]
[null,"",""]
[null,"",""]
[null,"",""]
[null,"",""]
[null,"",""]
[null,"",""]
[null,"",""]
[null,"",""]
[null,"",""]
[null,"",""]
[null,"",""]
[null,"",""]
[null,"",""]
[null,"",""]
[null,"",""]
[null,"",""]
[null,"",""]
[null,"",""]
[null,"",""]
[null,"",""]
[null,"",""]
[null,"",""]
[null,"",""]
[null,"",""]
[null,"",""]
[null,"",""]
[null,"",""]
[null,"",""]
[null,"",""]
[null,"",""]
[null,"",""]
[null,"",""]
[null,"",""]
[null,"",""]
[null,"",""]
[null,"",""]
[null,"",""]
[null,"",""]
[null,"",""]
[null,"",""]
[null,"",""]
[null,"",""]
[null,"",""]
[null,"",""]
[null,"",""]
[null,"",""]
[null,"",""]
[null,"",""]
[null,"",""]
[null,"",""]
[null,"",""]
[null,"",""]
[null,"",""]
[null,{"$f":"IF(D263<>\"\",B262+1,\"\")","v":""},""]
[null,"",""]
[null,"",""]
[null,"",{"$f":"IF(D266<>\"\",\"st\",\"\")","v":""}]
[null,"",""]
[null,"",""]
[null,"",""]
[null,"",""]
[null,"",""]
[null,"",""]
[null,"",""]
[null,"",""]
[null,"",""]
[null,"",""]
[null,"",""]
[null,"",""]
[null,"",""]
[null,"",""]
[null,"",""]
[null,"",""]
[null,"",""]
[null,"",""]
[null,"",""]
[null,"",""]
[null,"",""]
[null,"",""]
[null,"",""]
[null,"",""]
[null,"",""]
[null,"",""]
[null,"",""]
[null,"",""]
[null,"",""]
[null,"",""]
[null,"",""]
[null,"",""]
[null,"",""]
[null,"",""]
[null,"",""]
[null,"",""]
[null,"",""]
[null,"",""]
[null,"",""]
[null,"",""]
[null,"",""]
[null,"",""]
[null,"",""]
[null,"",""]
[null,"",""]
[null,"",""]
[null,"",""]
[null,"",""]
[null,"",""]
[null,"",""]
[null,"",""]
[null,"",""]
[null,"",""]
[null,"",""]
[null,"",""]
[null,"",""]
[null,"",""]
[null,"",""]
[null,"",""]
[null,"",""]
[null,{"$f":"IF(D327<>\"\",B326+1,\"\")","v":""},""]
[null,"",""]
[null,"",""]
[null,"",{"$f":"IF(D330<>\"\",\"st\",\"\")","v":""}]
[null,"",""]
[null,"",""]
[null,"",""]
[null,"",""]
[null,"",""]
[null,"",""]
[null,"",""]
[null,"",""]
[null,"",""]
[null,"",""]
[null,"",""]
[null,"",""]
[null,"",""]
[null,"",""]
[null,"",""]
[null,"",""]
[null,"",""]
[null,"",""]
[null,"",""]
[null,"",""]
[null,"",""]
[null,"",""]
[null,"",""]
[null,"",""]
[null,"",""]
[null,"",""]
[null,"",""]
[null,"",""]
[null,"",""]
[null,"",""]
[null,"",""]
[null,"",""]
[null,"",""]
[null,"",""]
[null,"",""]
[null,"",""]
[null,"",""]
[null,"",""]
[null,"",""]
[null,"",""]
[null,"",""]
[null,"",""]
[null,"",""]
[null,"",""]
[null,"",""]
[null,"",""]
[null,"",""]
[null,"",""]
[null,"",""]
[null,"",""]
[null,"",""]
[null,"",""]
[null,"",""]
[null,"",""]
[null,"",""]
[null,"",""]
[null,"",""]
[null,"",""]
[null,"",""]
[null,"",""]
[null,{"$f":"IF(D391<>\"\",B390+1,\"\")","v":""},""]
[null,"",""]
[null,"",""]
[null,"",{"$f":"IF(D394<>\"\",\"st\",\"\")","v":""}]
[null,"",""]
[null,"",""]
[null,"",""]
[null,"",""]
[null,"",""]
[null,"",""]
[null,"",""]
[null,"",""]
[null,"",""]
[null,"",""]
[null,"",""]
[null,"",""]
[null,"",""]
[null,"",""]
[null,"",""]
[null,"",""]
[null,"",""]
[null,"",""]
[null,"",""]
[null,"",""]
[null,"",""]
[null,"",""]
[null,"",""]
[null,"",""]
[null,"",""]
[null,"",""]
[null,"",""]
[null,"",""]
[null,"",""]
[null,"",""]
[null,"",""]
[null,"",""]
[null,"",""]
[null,"",""]
[null,"",""]
[null,"",""]
[null,"",""]
[null,"",""]
[null,"",""]
[null,"",""]
[null,"",""]
[null,"",""]
[null,"",""]
[null,"",""]
[null,"",""]
[null,"",""]
[null,"",""]
[null,"",""]
[null,"",""]
[null,"",""]
[null,"",""]
[null,"",""]
[null,"",""]
[null,"",""]
[null,"",""]
[null,"",""]
[null,"",""]
[null,"",""]
[null,"",""]
[null,"",""]
[null,{"$f":"IF(D455<>\"\",B454+1,\"\")","v":""},""]
[null,"",""]
[null,"",""]
[null,"",{"$f":"IF(D458<>\"\",\"st\",\"\")","v":""}]
[null,"",""]
[null,"",""]
[null,"",""]
[null,"",""]
[null,"",""]
[null,"",""]
[null,"",""]
[null,"",""]
[null,"",""]
[null,"",""]
[null,"",""]
[null,"",""]
[null,"",""]
[null,"",""]
[null,"",""]
[null,"",""]
[null,"",""]
[null,"",""]
[null,"",""]
[null,"",""]
[null,"",""]
[null,"",""]
[null,"",""]
[null,"",""]
[null,"",""]
[null,"",""]
[null,"",""]
[null,"",""]
[null,"",""]
[null,"",""]
[null,"",""]
[null,"",""]
[null,"",""]
[null,"",""]
[null,"",""]
[null,"",""]
[null,"",""]
[null,"",""]
[null,"",""]
[null,"",""]
[null,"",""]
[null,"",""]
[null,"",""]
[null,"",""]
[null,"",""]
[null,"",""]
[null,"",""]
[null,"",""]
[null,"",""]
[null,"",""]
[null,"",""]
[null,"",""]
[null,"",""]
[null,"",""]
[null,"",""]
[null,"",""]
[null,"",""]
[null,"",""]
[null,"",""]
[null,"",""]
[null,{"$f":"IF(D519<>\"\",B518+1,\"\")","v":""},""]
[null,"",""]
[null,"",""]
[null,"",{"$f":"IF(D522<>\"\",\"st\",\"\")","v":""}]
[null,"",""]
[null,"",""]
[null,"",""]
[null,"",""]
[null,"",""]
[null,"",""]
[null,"",""]
[null,"",""]
[null,"",""]
[null,"",""]
[null,"",""]
[null,"",""]
[null,"",""]
[null,"",""]
[null,"",""]
[null,"",""]
[null,"",""]
[null,"",""]
[null,"",""]
[null,"",""]
[null,"",""]
[null,"",""]
[null,"",""]
[null,"",""]
[null,"",""]
[null,"",""]
[null,"",""]
[null,"",""]
[null,"",""]
[null,"",""]
[null,"",""]
[null,"",""]
[null,"",""]
[null,"",""]
[null,"",""]
[null,"",""]
[null,"",""]
[null,"",""]
[null,"",""]
[null,"",""]
[null,"",""]
[null,"",""]
[null,"",""]
[null,"",""]
[null,"",""]
[null,"",""]
[null,"",""]
[null,"",""]
[null,"",""]
[null,"",""]
[null,"",""]
[null,"",""]
[null,"",""]
[null,"",""]
[null,"",""]
[null,"",""]
[null,"",""]
[null,"",""]
[null,"",""]
[null,"",""]
[null,{"$f":"IF(D583<>\"\",B582+1,\"\")","v":""},""]
[null,"",""]
[null,"",""]
[null,"",{"$f":"IF(D586<>\"\",\"st\",\"\")","v":""}]
[null,"",""]
[null,"",""]
[null,"",""]
[null,"",""]
[null,"",""]
[null,"",""]
[null,"",""]
[null,"",""]
[null,"",""]
[null,"",""]
[null,"",""]
[null,"",""]
[null,"",""]
[null,"",""]
[null,"",""]
[null,"",""]
[null,"",""]
[null,"",""]
[null,"",""]
[null,"",""]
[null,"",""]
[null,"",""]
[null,"",""]
[null,"",""]
[null,"",""]
[null,"",""]
[null,"",""]
[null,"",""]
[null,"",""]
[null,"",""]
[null,"",""]
[null,"",""]
[null,"",""]
[null,"",""]
[null,"",""]
[null,"",""]
[null,"",""]
[null,"",""]
[null,"",""]
[null,"",""]
[null,"",""]
[null,"",""]
[null,"",""]
[null,"",""]
[null,"",""]
[null,"",""]
[null,"",""]
[null,"",""]
[null,"",""]
[null,"",""]
[null,"",""]
[null,"",""]
[null,"",""]
[null,"",""]
[null,"",""]
[null,"",""]
[null,"",""]
[null,"",""]
[null,"",""]
[null,"",""]
[null,{"$f":"IF(D647<>\"\",B646+1,\"\")","v":""},""]
[null,"",""]
[null,"",""]
[null,"",{"$f":"IF(D650<>\"\",\"st\",\"\")","v":""}]
[null,"",""]
[null,"",""]
[null,"",""]
[null,"",""]
[null,"",""]
[null,"",""]
[null,"",""]
[null,"",""]
[null,"",""]
[null,"",""]
[null,"",""]
[null,"",""]
[null,"",""]
[null,"",""]
[null,"",""]
[null,"",""]
[null,"",""]
[null,"",""]
[null,"",""]
[null,"",""]
[null,"",""]
[null,"",""]
[null,"",""]
[null,"",""]
[null,"",""]
[null,"",""]
[null,"",""]
[null,"",""]
[null,"",""]
[null,"",""]
[null,"",""]
[null,"",""]
[null,"",""]
[null,"",""]
[null,"",""]
[null,"",""]
[null,"",""]
[null,"",""]
[null,"",""]
[null,"",""]
[null,"",""]
[null,"",""]
[null,"",""]
[null,"",""]
[null,"",""]
[null,"",""]
[null,"",""]
[null,"",""]
[null,"",""]
[null,"",""]
[null,"",""]
[null,"",""]
[null,"",""]
[null,"",""]
[null,"",""]
[null,"",""]
[null,"",""]
[null,"",""]
[null,"",""]
[null,"",""]
[null,{"$f":"IF(D711<>\"\",B710+1,\"\")","v":""},""]
[null,"",""]
[null,"",""]
[null,"",{"$f":"IF(D714<>\"\",\"st\",\"\")","v":""}]
[null,"",""]
[null,"",""]
[null,"",""]
[null,"",""]
[null,"",""]
[null,"",""]
[null,"",""]
[null,"",""]
[null,"",""]
[null,"",""]
[null,"",""]
[null,"",""]
[null,"",""]
[null,"",""]
[null,"",""]
[null,"",""]
[null,"",""]
[null,"",""]
[null,"",""]
[null,"",""]
[null,"",""]
[null,"",""]
[null,"",""]
[null,"",""]
[null,"",""]
[null,"",""]
[null,"",""]
[null,"",""]
[null,"",""]
[null,"",""]
[null,"",""]
[null,"",""]
[null,"",""]
[null,"",""]
[null,"",""]
[null,"",""]
[null,"",""]
[null,"",""]
[null,"",""]
[null,"",""]
[null,"",""]
[null,"",""]
[null,"",""]
[null,"",""]
[null,"",""]
[null,"",""]
[null,"",""]
[null,"",""]
[null,"",""]
[null,"",""]
[null,"",""]
[null,"",""]
[null,"",""]
[null,"",""]
[null,"",""]
[null,"",""]
[null,"",""]
[null,"",""]
[null,"",""]
[null,"",""]
[null,{"$f":"IF(D775<>\"\",B774+1,\"\")","v":""},""]
[null,"",""]
[null,"",""]
[null,"",{"$f":"IF(D778<>\"\",\"st\",\"\")","v":""}]
[null,"",""]
[null,"",""]
[null,"",""]
[null,"",""]
[null,"",""]
[null,"",""]
[null,"",""]
[null,"",""]
[null,"",""]
[null,"",""]
[null,"",""]
[null,"",""]
[null,"",""]
[null,"",""]
[null,"",""]
[null,"",""]
[null,"",""]
[null,"",""]
[null,"",""]
[null,"",""]
[null,"",""]
[null,"",""]
[null,"",""]
[null,"",""]
[null,"",""]
[null,"",""]
[null,"",""]
[null,"",""]
[null,"",""]
[null,"",""]
[null,"",""]
[null,"",""]
[null,"",""]
[null,"",""]
[null,"",""]
[null,"",""]
[null,"",""]
[null,"",""]
[null,"",""]
[null,"",""]
[null,"",""]
[null,"",""]
[null,"",""]
[null,"",""]
[null,"",""]
[null,"",""]
[null,"",""]
[null,"",""]
[null,"",""]
[null,"",""]
[null,"",""]
[null,"",""]
[null,"",""]
[null,"",""]
[null,"",""]
[null,"",""]
[null,"",""]
[null,"",""]
[null,"",""]
[null,"",""]
[null,{"$f":"IF(D839<>\"\",B838+1,\"\")","v":""},""]
[null,"",""]
[null,"",""]
[null,"",{"$f":"IF(D842<>\"\",\"st\",\"\")","v":""}]
[null,"",""]
[null,"",""]
[null,"",""]
[null,"",""]
[null,"",""]
[null,"",""]
[null,"",""]
[null,"",""]
[null,"",""]
[null,"",""]
[null,"",""]
[null,"",""]
[null,"",""]
[null,"",""]
[null,"",""]
[null,"",""]
[null,"",""]
[null,"",""]
[null,"",""]
[null,"",""]
[null,"",""]
[null,"",""]
[null,"",""]
[null,"",""]
[null,"",""]
[null,"",""]
[null,"",""]
[null,"",""]
[null,"",""]
[null,"",""]
[null,"",""]
[null,"",""]
[null,"",""]
[null,"",""]
[null,"",""]
[null,"",""]
[null,"",""]
[null,"",""]
[null,"",""]
[null,"",""]
[null,"",""]
[null,"",""]
[null,"",""]
[null,"",""]
[null,"",""]
[null,"",""]
[null,"",""]
[null,"",""]
[null,"",""]
[null,"",""]
[null,"",""]
[null,"",""]
[null,"",""]
[null,"",""]
[null,"",""]
[null,"",""]
[null,"",""]
[null,"",""]
[null,"",""]
[null,"",""]
[null,{"$f":"IF(D903<>\"\",B902+1,\"\")","v":""},""]
[null,"",""]
[null,"",""]
[null,"",{"$f":"IF(D906<>\"\",\"st\",\"\")","v":""}]
[null,"",""]
[null,"",""]
[null,"",""]
[null,"",""]
[null,"",""]
[null,"",""]
[null,"",""]
[null,"",""]
[null,"",""]
[null,"",""]
[null,"",""]
[null,"",""]
[null,"",""]
[null,"",""]
[null,"",""]
[null,"",""]
[null,"",""]
[null,"",""]
[null,"",""]
[null,"",""]
[null,"",""]
[null,"",""]
[null,"",""]
[null,"",""]
[null,"",""]
[null,"",""]
[null,"",""]
[null,"",""]
[null,"",""]
[null,"",""]
[null,"",""]
[null,"",""]
[null,"",""]
[null,"",""]
[null,"",""]
[null,"",""]
[null,"",""]
[null,"",""]
[null,"",""]
[null,"",""]
[null,"",""]
[null,"",""]
[null,"",""]
[null,"",""]
[null,"",""]
[null,"",""]
[null,"",""]
[null,"",""]
[null,"",""]
[null,"",""]
[null,"",""]
[null,"",""]
[null,"",""]
[null,"",""]
[null,"",""]
[null,"",""]
[null,"",""]
[null,"",""]
[null,"",""]
[null,"",""]
[null,{"$f":"IF(D967<>\"\",B966+1,\"\")","v":""},""]
[null,"",""]
[null,"",""]
[null,"",{"$f":"IF(D970<>\"\",\"st\",\"\")","v":""}]
[null,"",""]
[null,"",""]
[null,"",""]
[null,"",""]
[null,"",""]
[null,"",""]
[null,"",""]
[null,"",""]
[null,"",""]
[null,"",""]
[null,"",""]
[null,"",""]
[null,"",""]
[null,"",""]
[null,"",""]
[null,"",""]
[null,"",""]
[null,"",""]
[null,"",""]
[null,"",""]
[null,"",""]
[null,"",""]
[null,"",""]
[null,"",""]
[null,"",""]
[null,"",""]
[null,"",""]
[null,"",""]
[null,"",""]
[null,"",""]

{"sheet":"kartoni","index":1,"n_rows":1000,"n_cols":15,"rows_kept":1000,"cut":false,"hidden":false,"merged":[[0,1,0,9],[6,9,7,9],[6,7,7,7],[6,3,7,3],[6,4,6,6]]}
[null,"K a r t o n     p a c i j e n t a"]
[]
[null,"red. Br","godine","Pacijent"]
[null,2,{"$f":"IF(B4<>\"\",VLOOKUP(B4,tblPacijenti,3,TRUE),\"\")","v":21},{"$f":"IF(B4<>\"\",VLOOKUP(B4,tblPacijenti,5,TRUE) &\" \" & VLOOKUP(B4,tblPacijenti,6,TRUE),\"\")","v":"rasa jovanov"},null,null,{"$f":"SUBTOTAL(109,G9:G508)","v":8900},null,{"$f":"SUBTOTAL(109,I9:I508)","v":6000}]
[null,null,"rođen",{"$f":"IF(B4<>\"\",VLOOKUP(B4,tblPacijenti,7,TRUE),\"\")","v":"1969-04-26"}]
[]
[null,"Redni broj","Datum pregleda","Anamneza","Predložena terapija",null,null,"Izvršena terapija","Plaćena terapija","Napomena"]
[null,"broj",null,null,"Terapija","predlog","Cena",null,"terapija"]
[null,1,"2021-04-10","Vratni mišić - izveštaj privatnog specijaliste das as as sdf sdfsdfsd","FTh, TECAR, Recovery 12","specijaliste",{"$f":"IFERROR(VLOOKUP(M9,tblCENOVNIK,3, FALSE),0)+IFERROR(VLOOKUP(N9,tblCENOVNIK,3, FALSE),0)+IFERROR(VLOOKUP(O9,tblCENOVNIK,3, FALSE),0)","v":4700},"1.- aparat TXVZ",1000,"Uplaćeno sve ili ništa",null,null,{"$f":"IFERROR(LEFT(E9,SEARCH(\",\",E9)-1),E9)","v":"FTh"},{"$f":"IFERROR(TRIM(IFERROR(MID(E9,SEARCH(\",\",E9)+1,SEARCH(\",\",E9,SEARCH(\",\",E9)+1)-SEARCH(\",\",E9)-1),\"\")),\"\")","v":"TECAR"},{"$f":"IFERROR(TRIM(IF(LEN(E9)-LEN(SUBSTITUTE(E9,\",\",\"\"))=1,RIGHT(E9,LEN(E9)-SEARCH(\",\",E9)),RIGHT(E9,LEN(E9)-SEARCH(\",\",E9,SEARCH(\",\",E9)+1)))),\"\")","v":"Recovery 12"}]
[null,1,"2021-04-11","Vratni mišić - izveštaj privatnog specijaliste","FTh, TECAR, DN","specijaliste",3800,"2.- aparat TXVZ",2000,null,null,null,{"$f":"IFERROR(LEFT(E10,SEARCH(\",\",E10)-1),E10)","v":"FTh"},{"$f":"IFERROR(TRIM(IFERROR(MID(E10,SEARCH(\",\",E10)+1,SEARCH(\",\",E10,SEARCH(\",\",E10)+1)-SEARCH(\",\",E10)-1),\"\")),\"\")","v":"TECAR"},{"$f":"IFERROR(TRIM(IF(LEN(E10)-LEN(SUBSTITUTE(E10,\",\",\"\"))=1,RIGHT(E10,LEN(E10)-SEARCH(\",\",E10)),RIGHT(E10,LEN(E10)-SEARCH(\",\",E10,SEARCH(\",\",E10)+1)))),\"\")","v":"DN"}]
[null,1,"2021-04-12","oporavak","Recovery 12, Rehab 1","specijaliste",4500,"aparat GFV",1000,null,null,null,"Recovery 12","","Rehab 1"]
[null,2,"2021-04-13","oporavak","Recovery 12, Masaža","specijaliste",4100,"aparat GFV",6000,null,null,null,{"$f":"IFERROR(LEFT(E12,SEARCH(\",\",E12)-1),E12)","v":"Recovery 12"},{"$f":"IFERROR(TRIM(IFERROR(MID(E12,SEARCH(\",\",E12)+1,SEARCH(\",\",E12,SEARCH(\",\",E12)+1)-SEARCH(\",\",E12)-1),\"\")),\"\")","v":""},{"$f":"IFERROR(TRIM(IF(LEN(E12)-LEN(SUBSTITUTE(E12,\",\",\"\"))=1,RIGHT(E12,LEN(E12)-SEARCH(\",\",E12)),RIGHT(E12,LEN(E12)-SEARCH(\",\",E12,SEARCH(\",\",E12)+1)))),\"\")","v":"Masaža"}]
[null,3,"2021-04-16","teniski lakat","FTh + KTh, Ktape, KTh","specijaliste",3700,null,2000,null,null,null,"FTh + KTh","Ktape","KTh"]
[null,3,"2021-04-16","teniski lakat","FTh, TECAR, KTh, KTh","specijaliste",2500,null,null,null,null,null,"FTh","TECAR","KTh, KTh"]
[null,3,"2021-04-16","teniski lakat","KTh","specijaliste",1100,null,null,null,null,null,"KTh","",""]
[null,3,"2021-04-17",null,"KTh","specijaliste",1100,null,1500,null,null,null,"KTh","",""]
[null,2,"2021-04-20",null,"Rehab 1, Patronaža",null,4800,null,null,null,null,null,"Rehab 1","","Patronaža"]
[null,3,"2021-04-22",null,"HVLA, Rehab 1","SportLand",5100,null,2000,null,null,null,"HVLA","","Rehab 1"]
[null,3,"2021-04-22",null,"KTh, TECAR","lični zahtev",2600,null,3000,null,null,null,"KTh","","TECAR"]
[null,3,"2021-04-24","nesto","Ktape, Sauna","lični zahtev",3400,null,null,null,null,null,"Ktape","","Sauna"]
[null,0,null,null,"",null,0,null,null,null,null,null,"","",""]
[null,0,null,null,"",null,0,null,null,null,null,null,"","",""]
[null,0,null,null,"",null,0,null,null,null,null,null,"","",""]
[null,0,null,null,"",null,0,null,null,null,null,null,"","",""]
[null,0,null,null,"",null,0,null,null,null,null,null,"","",""]
[null,0,null,null,"",null,0,null,null,null,null,null,"","",""]
[null,0,null,null,"",null,0,null,null,null,null,null,"","",""]
[null,0,null,null,"",null,0,null,null,null,null,null,"","",""]
[null,0,null,null,"",null,0,null,null,null,null,null,"","",""]
[null,0,null,null,"",null,0,null,null,null,null,null,"","",""]
[null,0,null,null,"",null,0,null,null,null,null,null,"","",""]
[null,0,null,null,"",null,0,null,null,null,null,null,"","",""]
[null,0,null,null,"",null,0,null,null,null,null,null,"","",""]
[null,0,null,null,"",null,0,null,null,null,null,null,"","",""]
[null,0,null,null,"",null,0,null,null,null,null,null,"","",""]
[null,0,null,null,"",null,0,null,null,null,null,null,"","",""]
[null,0,null,null,"",null,0,null,null,null,null,null,"","",""]
[null,0,null,null,"",null,0,null,null,null,null,null,"","",""]
[null,0,null,null,"",null,0,null,null,null,null,null,"","",""]
[null,0,null,null,"",null,0,null,null,null,null,null,"","",""]
[null,0,null,null,"",null,0,null,null,null,null,null,"","",""]
[null,0,null,null,"",null,0,null,null,null,null,null,"","",""]
[null,0,null,null,"",null,0,null,null,null,null,null,"","",""]
[null,0,null,null,"",null,0,null,null,null,null,null,"","",""]
[null,0,null,null,"",null,0,null,null,null,null,null,"","",""]
[null,0,null,null,"",null,0,null,null,null,null,null,"","",""]
[null,0,null,null,"",null,0,null,null,null,null,null,"","",""]
[null,0,null,null,"",null,0,null,null,null,null,null,"","",""]
[null,0,null,null,"",null,0,null,null,null,null,null,"","",""]
[null,0,null,null,"",null,0,null,null,null,null,null,"","",""]
[null,0,null,null,"",null,0,null,null,null,null,null,"","",""]
[null,0,null,null,"",null,0,null,null,null,null,null,"","",""]
[null,0,null,null,"",null,0,null,null,null,null,null,"","",""]
[null,0,null,null,"",null,0,null,null,null,null,null,"","",""]
[null,0,null,null,"",null,0,null,null,null,null,null,"","",""]
[null,0,null,null,"",null,0,null,null,null,null,null,"","",""]
[null,0,null,null,"",null,0,null,null,null,null,null,"","",""]
[null,0,null,null,"",null,0,null,null,null,null,null,"","",""]
[null,0,null,null,"",null,0,null,null,null,null,null,"","",""]
[null,0,null,null,"",null,0,null,null,null,null,null,"","",""]
[null,0,null,null,"",null,0,null,null,null,null,null,"","",""]
[null,0,null,null,"",null,0,null,null,null,null,null,"","",""]
[null,0,null,null,"",null,0,null,null,null,null,null,"","",""]
[null,0,null,null,"",null,0,null,null,null,null,null,"","",""]
[null,0,null,null,"",null,0,null,null,null,null,null,"","",""]
[null,0,null,null,"",null,0,null,null,null,null,null,"","",""]
[null,0,null,null,"",null,0,null,null,null,null,null,"","",""]
[null,0,null,null,"",null,0,null,null,null,null,null,"","",""]
[null,0,null,null,"",null,0,null,null,null,null,null,"","",""]
[null,0,null,null,"",null,0,null,null,null,null,null,"","",""]
[null,0,null,null,"",null,0,null,null,null,null,null,"","",""]
[null,0,null,null,"",null,0,null,null,null,null,null,"","",""]
[null,0,null,null,"",null,{"$f":"IFERROR(VLOOKUP(M73,tblCENOVNIK,3, FALSE),0)+IFERROR(VLOOKUP(N73,tblCENOVNIK,3, FALSE),0)+IFERROR(VLOOKUP(O73,tblCENOVNIK,3, FALSE),0)","v":0},null,null,null,null,null,"","",""]
[null,0,null,null,"",null,0,null,null,null,null,null,"","",""]
[null,0,null,null,"",null,0,null,null,null,null,null,"","",""]
[null,0,null,null,"",null,0,null,null,null,null,null,{"$f":"IFERROR(LEFT(E76,SEARCH(\",\",E76)-1),E76)","v":""},{"$f":"IFERROR(TRIM(IFERROR(MID(E76,SEARCH(\",\",E76)+1,SEARCH(\",\",E76,SEARCH(\",\",E76)+1)-SEARCH(\",\",E76)-1),\"\")),\"\")","v":""},{"$f":"IFERROR(TRIM(IF(LEN(E76)-LEN(SUBSTITUTE(E76,\",\",\"\"))=1,RIGHT(E76,LEN(E76)-SEARCH(\",\",E76)),RIGHT(E76,LEN(E76)-SEARCH(\",\",E76,SEARCH(\",\",E76)+1)))),\"\")","v":""}]
[null,0,null,null,"",null,0,null,null,null,null,null,"","",""]
[null,0,null,null,"",null,0,null,null,null,null,null,"","",""]
[null,0,null,null,"",null,0,null,null,null,null,null,"","",""]
[null,0,null,null,"",null,0,null,null,null,null,null,"","",""]
[null,0,null,null,"",null,0,null,null,null,null,null,"","",""]
[null,0,null,null,"",null,0,null,null,null,null,null,"","",""]
[null,0,null,null,"",null,0,null,null,null,null,null,"","",""]
[null,0,null,null,"",null,0,null,null,null,null,null,"","",""]
[null,0,null,null,"",null,0,null,null,null,null,null,"","",""]
[null,0,null,null,"",null,0,null,null,null,null,null,"","",""]
[null,0,null,null,"",null,0,null,null,null,null,null,"","",""]
[null,0,null,null,"",null,0,null,null,null,null,null,"","",""]
[null,0,null,null,"",null,0,null,null,null,null,null,"","",""]
[null,0,null,null,"",null,0,null,null,null,null,null,"","",""]
[null,0,null,null,"",null,0,null,null,null,null,null,"","",""]
[null,0,null,null,"",null,0,null,null,null,null,null,"","",""]
[null,0,null,null,"",null,0,null,null,null,null,null,"","",""]
[null,0,null,null,"",null,0,null,null,null,null,null,"","",""]
[null,0,null,null,"",null,0,null,null,null,null,null,"","",""]
[null,0,null,null,"",null,0,null,null,null,null,null,"","",""]
[null,0,null,null,"",null,0,null,null,null,null,null,"","",""]
[null,0,null,null,"",null,0,null,null,null,null,null,"","",""]
[null,0,null,null,"",null,0,null,null,null,null,null,"","",""]
[null,0,null,null,"",null,0,null,null,null,null,null,"","",""]
[null,0,null,null,"",null,0,null,null,null,null,null,"","",""]
[null,0,null,null,"",null,0,null,null,null,null,null,"","",""]
[null,0,null,null,"",null,0,null,null,null,null,null,"","",""]
[null,0,null,null,"",null,0,null,null,null,null,null,"","",""]
[null,0,null,null,"",null,0,null,null,null,null,null,"","",""]
[null,0,null,null,"",null,0,null,null,null,null,null,"","",""]
[null,0,null,null,"",null,0,null,null,null,null,null,"","",""]
[null,0,null,null,"",null,0,null,null,null,null,null,"","",""]
[null,0,null,null,"",null,0,null,null,null,null,null,"","",""]
[null,0,null,null,"",null,0,null,null,null,null,null,"","",""]
[null,0,null,null,"",null,0,null,null,null,null,null,"","",""]
[null,0,null,null,"",null,0,null,null,null,null,null,"","",""]
[null,0,null,null,"",null,0,null,null,null,null,null,"","",""]
[null,0,null,null,"",null,0,null,null,null,null,null,"","",""]
[null,0,null,null,"",null,0,null,null,null,null,null,"","",""]
[null,0,null,null,"",null,0,null,null,null,null,null,"","",""]
[null,0,null,null,"",null,0,null,null,null,null,null,"","",""]
[null,0,null,null,"",null,0,null,null,null,null,null,"","",""]
[null,0,null,null,"",null,0,null,null,null,null,null,"","",""]
[null,0,null,null,"",null,0,null,null,null,null,null,"","",""]
[null,0,null,null,"",null,0,null,null,null,null,null,"","",""]
[null,0,null,null,"",null,0,null,null,null,null,null,"","",""]
[null,0,null,null,"",null,0,null,null,null,null,null,"","",""]
[null,0,null,null,"",null,0,null,null,null,null,null,"","",""]
[null,0,null,null,"",null,0,null,null,null,null,null,"","",""]
[null,0,null,null,"",null,0,null,null,null,null,null,"","",""]
[null,0,null,null,"",null,0,null,null,null,null,null,"","",""]
[null,0,null,null,"",null,0,null,null,null,null,null,"","",""]
[null,0,null,null,"",null,0,null,null,null,null,null,"","",""]
[null,0,null,null,"",null,0,null,null,null,null,null,"","",""]
[null,0,null,null,"",null,0,null,null,null,null,null,"","",""]
[null,0,null,null,"",null,0,null,null,null,null,null,"","",""]
[null,0,null,null,"",null,0,null,null,null,null,null,"","",""]
[null,0,null,null,"",null,0,null,null,null,null,null,"","",""]
[null,0,null,null,"",null,0,null,null,null,null,null,"","",""]
[null,0,null,null,"",null,0,null,null,null,null,null,"","",""]
[null,0,null,null,"",null,{"$f":"IFERROR(VLOOKUP(M137,tblCENOVNIK,3, FALSE),0)+IFERROR(VLOOKUP(N137,tblCENOVNIK,3, FALSE),0)+IFERROR(VLOOKUP(O137,tblCENOVNIK,3, FALSE),0)","v":0},null,null,null,null,null,"","",""]
[null,0,null,null,"",null,0,null,null,null,null,null,"","",""]
[null,0,null,null,"",null,0,null,null,null,null,null,"","",""]
[null,0,null,null,"",null,0,null,null,null,null,null,{"$f":"IFERROR(LEFT(E140,SEARCH(\",\",E140)-1),E140)","v":""},{"$f":"IFERROR(TRIM(IFERROR(MID(E140,SEARCH(\",\",E140)+1,SEARCH(\",\",E140,SEARCH(\",\",E140)+1)-SEARCH(\",\",E140)-1),\"\")),\"\")","v":""},{"$f":"IFERROR(TRIM(IF(LEN(E140)-LEN(SUBSTITUTE(E140,\",\",\"\"))=1,RIGHT(E140,LEN(E140)-SEARCH(\",\",E140)),RIGHT(E140,LEN(E140)-SEARCH(\",\",E140,SEARCH(\",\",E140)+1)))),\"\")","v":""}]
[null,0,null,null,"",null,0,null,null,null,null,null,"","",""]
[null,0,null,null,"",null,0,null,null,null,null,null,"","",""]
[null,0,null,null,"",null,0,null,null,null,null,null,"","",""]
[null,0,null,null,"",null,0,null,null,null,null,null,"","",""]
[null,0,null,null,"",null,0,null,null,null,null,null,"","",""]
[null,0,null,null,"",null,0,null,null,null,null,null,"","",""]
[null,0,null,null,"",null,0,null,null,null,null,null,"","",""]
[null,0,null,null,"",null,0,null,null,null,null,null,"","",""]
[null,0,null,null,"",null,0,null,null,null,null,null,"","",""]
[null,0,null,null,"",null,0,null,null,null,null,null,"","",""]
[null,0,null,null,"",null,0,null,null,null,null,null,"","",""]
[null,0,null,null,"",null,0,null,null,null,null,null,"","",""]
[null,0,null,null,"",null,0,null,null,null,null,null,"","",""]
[null,0,null,null,"",null,0,null,null,null,null,null,"","",""]
[null,0,null,null,"",null,0,null,null,null,null,null,"","",""]
[null,0,null,null,"",null,0,null,null,null,null,null,"","",""]
[null,0,null,null,"",null,0,null,null,null,null,null,"","",""]
[null,0,null,null,"",null,0,null,null,null,null,null,"","",""]
[null,0,null,null,"",null,0,null,null,null,null,null,"","",""]
[null,0,null,null,"",null,0,null,null,null,null,null,"","",""]
[null,0,null,null,"",null,0,null,null,null,null,null,"","",""]
[null,0,null,null,"",null,0,null,null,null,null,null,"","",""]
[null,0,null,null,"",null,0,null,null,null,null,null,"","",""]
[null,0,null,null,"",null,0,null,null,null,null,null,"","",""]
[null,0,null,null,"",null,0,null,null,null,null,null,"","",""]
[null,0,null,null,"",null,0,null,null,null,null,null,"","",""]
[null,0,null,null,"",null,0,null,null,null,null,null,"","",""]
[null,0,null,null,"",null,0,null,null,null,null,null,"","",""]
[null,0,null,null,"",null,0,null,null,null,null,null,"","",""]
[null,0,null,null,"",null,0,null,null,null,null,null,"","",""]
[null,0,null,null,"",null,0,null,null,null,null,null,"","",""]
[null,0,null,null,"",null,0,null,null,null,null,null,"","",""]
[null,0,null,null,"",null,0,null,null,null,null,null,"","",""]
[null,0,null,null,"",null,0,null,null,null,null,null,"","",""]
[null,0,null,null,"",null,0,null,null,null,null,null,"","",""]
[null,0,null,null,"",null,0,null,null,null,null,null,"","",""]
[null,0,null,null,"",null,0,null,null,null,null,null,"","",""]
[null,0,null,null,"",null,0,null,null,null,null,null,"","",""]
[null,0,null,null,"",null,0,null,null,null,null,null,"","",""]
[null,0,null,null,"",null,0,null,null,null,null,null,"","",""]
[null,0,null,null,"",null,0,null,null,null,null,null,"","",""]
[null,0,null,null,"",null,0,null,null,null,null,null,"","",""]
[null,0,null,null,"",null,0,null,null,null,null,null,"","",""]
[null,0,null,null,"",null,0,null,null,null,null,null,"","",""]
[null,0,null,null,"",null,0,null,null,null,null,null,"","",""]
[null,0,null,null,"",null,0,null,null,null,null,null,"","",""]
[null,0,null,null,"",null,0,null,null,null,null,null,"","",""]
[null,0,null,null,"",null,0,null,null,null,null,null,"","",""]
[null,0,null,null,"",null,0,null,null,null,null,null,"","",""]
[null,0,null,null,"",null,0,null,null,null,null,null,"","",""]
[null,0,null,null,"",null,0,null,null,null,null,null,"","",""]
[null,0,null,null,"",null,0,null,null,null,null,null,"","",""]
[null,0,null,null,"",null,0,null,null,null,null,null,"","",""]
[null,0,null,null,"",null,0,null,null,null,null,null,"","",""]
[null,0,null,null,"",null,0,null,null,null,null,null,"","",""]
[null,0,null,null,"",null,0,null,null,null,null,null,"","",""]
[null,0,null,null,"",null,0,null,null,null,null,null,"","",""]
[null,0,null,null,"",null,0,null,null,null,null,null,"","",""]
[null,0,null,null,"",null,0,null,null,null,null,null,"","",""]
[null,0,null,null,"",null,0,null,null,null,null,null,"","",""]
[null,0,null,null,"",null,{"$f":"IFERROR(VLOOKUP(M201,tblCENOVNIK,3, FALSE),0)+IFERROR(VLOOKUP(N201,tblCENOVNIK,3, FALSE),0)+IFERROR(VLOOKUP(O201,tblCENOVNIK,3, FALSE),0)","v":0},null,null,null,null,null,"","",""]
[null,0,null,null,"",null,0,null,null,null,null,null,"","",""]
[null,0,null,null,"",null,0,null,null,null,null,null,"","",""]
[null,0,null,null,"",null,0,null,null,null,null,null,{"$f":"IFERROR(LEFT(E204,SEARCH(\",\",E204)-1),E204)","v":""},{"$f":"IFERROR(TRIM(IFERROR(MID(E204,SEARCH(\",\",E204)+1,SEARCH(\",\",E204,SEARCH(\",\",E204)+1)-SEARCH(\",\",E204)-1),\"\")),\"\")","v":""},{"$f":"IFERROR(TRIM(IF(LEN(E204)-LEN(SUBSTITUTE(E204,\",\",\"\"))=1,RIGHT(E204,LEN(E204)-SEARCH(\",\",E204)),RIGHT(E204,LEN(E204)-SEARCH(\",\",E204,SEARCH(\",\",E204)+1)))),\"\")","v":""}]
[null,0,null,null,"",null,0,null,null,null,null,null,"","",""]
[null,0,null,null,"",null,0,null,null,null,null,null,"","",""]
[null,0,null,null,"",null,0,null,null,null,null,null,"","",""]
[null,0,null,null,"",null,0,null,null,null,null,null,"","",""]
[null,0,null,null,"",null,0,null,null,null,null,null,"","",""]
[null,0,null,null,"",null,0,null,null,null,null,null,"","",""]
[null,0,null,null,"",null,0,null,null,null,null,null,"","",""]
[null,0,null,null,"",null,0,null,null,null,null,null,"","",""]
[null,0,null,null,"",null,0,null,null,null,null,null,"","",""]
[null,0,null,null,"",null,0,null,null,null,null,null,"","",""]
[null,0,null,null,"",null,0,null,null,null,null,null,"","",""]
[null,0,null,null,"",null,0,null,null,null,null,null,"","",""]
[null,0,null,null,"",null,0,null,null,null,null,null,"","",""]
[null,0,null,null,"",null,0,null,null,null,null,null,"","",""]
[null,0,null,null,"",null,0,null,null,null,null,null,"","",""]
[null,0,null,null,"",null,0,null,null,null,null,null,"","",""]
[null,0,null,null,"",null,0,null,null,null,null,null,"","",""]
[null,0,null,null,"",null,0,null,null,null,null,null,"","",""]
[null,0,null,null,"",null,0,null,null,null,null,null,"","",""]
[null,0,null,null,"",null,0,null,null,null,null,null,"","",""]
[null,0,null,null,"",null,0,null,null,null,null,null,"","",""]
[null,0,null,null,"",null,0,null,null,null,null,null,"","",""]
[null,0,null,null,"",null,0,null,null,null,null,null,"","",""]
[null,0,null,null,"",null,0,null,null,null,null,null,"","",""]
[null,0,null,null,"",null,0,null,null,null,null,null,"","",""]
[null,0,null,null,"",null,0,null,null,null,null,null,"","",""]
[null,0,null,null,"",null,0,null,null,null,null,null,"","",""]
[null,0,null,null,"",null,0,null,null,null,null,null,"","",""]
[null,0,null,null,"",null,0,null,null,null,null,null,"","",""]
[null,0,null,null,"",null,0,null,null,null,null,null,"","",""]
[null,0,null,null,"",null,0,null,null,null,null,null,"","",""]
[null,0,null,null,"",null,0,null,null,null,null,null,"","",""]
[null,0,null,null,"",null,0,null,null,null,null,null,"","",""]
[null,0,null,null,"",null,0,null,null,null,null,null,"","",""]
[null,0,null,null,"",null,0,null,null,null,null,null,"","",""]
[null,0,null,null,"",null,0,null,null,null,null,null,"","",""]
[null,0,null,null,"",null,0,null,null,null,null,null,"","",""]
[null,0,null,null,"",null,0,null,null,null,null,null,"","",""]
[null,0,null,null,"",null,0,null,null,null,null,null,"","",""]
[null,0,null,null,"",null,0,null,null,null,null,null,"","",""]
[null,0,null,null,"",null,0,null,null,null,null,null,"","",""]
[null,0,null,null,"",null,0,null,null,null,null,null,"","",""]
[null,0,null,null,"",null,0,null,null,null,null,null,"","",""]
[null,0,null,null,"",null,0,null,null,null,null,null,"","",""]
[null,0,null,null,"",null,0,null,null,null,null,null,"","",""]
[null,0,null,null,"",null,0,null,null,null,null,null,"","",""]
[null,0,null,null,"",null,0,null,null,null,null,null,"","",""]
[null,0,null,null,"",null,0,null,null,null,null,null,"","",""]
[null,0,null,null,"",null,0,null,null,null,null,null,"","",""]
[null,0,null,null,"",null,0,null,null,null,null,null,"","",""]
[null,0,null,null,"",null,0,null,null,null,null,null,"","",""]
[null,0,null,null,"",null,0,null,null,null,null,null,"","",""]
[null,0,null,null,"",null,0,null,null,null,null,null,"","",""]
[null,0,null,null,"",null,0,null,null,null,null,null,"","",""]
[null,0,null,null,"",null,0,null,null,null,null,null,"","",""]
[null,0,null,null,"",null,0,null,null,null,null,null,"","",""]
[null,0,null,null,"",null,0,null,null,null,null,null,"","",""]
[null,0,null,null,"",null,0,null,null,null,null,null,"","",""]
[null,0,null,null,"",null,0,null,null,null,null,null,"","",""]
[null,0,null,null,"",null,0,null,null,null,null,null,"","",""]
[null,0,null,null,"",null,{"$f":"IFERROR(VLOOKUP(M265,tblCENOVNIK,3, FALSE),0)+IFERROR(VLOOKUP(N265,tblCENOVNIK,3, FALSE),0)+IFERROR(VLOOKUP(O265,tblCENOVNIK,3, FALSE),0)","v":0},null,null,null,null,null,"","",""]
[null,0,null,null,"",null,0,null,null,null,null,null,"","",""]
[null,0,null,null,"",null,0,null,null,null,null,null,"","",""]
[null,0,null,null,"",null,0,null,null,null,null,null,{"$f":"IFERROR(LEFT(E268,SEARCH(\",\",E268)-1),E268)","v":""},{"$f":"IFERROR(TRIM(IFERROR(MID(E268,SEARCH(\",\",E268)+1,SEARCH(\",\",E268,SEARCH(\",\",E268)+1)-SEARCH(\",\",E268)-1),\"\")),\"\")","v":""},{"$f":"IFERROR(TRIM(IF(LEN(E268)-LEN(SUBSTITUTE(E268,\",\",\"\"))=1,RIGHT(E268,LEN(E268)-SEARCH(\",\",E268)),RIGHT(E268,LEN(E268)-SEARCH(\",\",E268,SEARCH(\",\",E268)+1)))),\"\")","v":""}]
[null,0,null,null,"",null,0,null,null,null,null,null,"","",""]
[null,0,null,null,"",null,0,null,null,null,null,null,"","",""]
[null,0,null,null,"",null,0,null,null,null,null,null,"","",""]
[null,0,null,null,"",null,0,null,null,null,null,null,"","",""]
[null,0,null,null,"",null,0,null,null,null,null,null,"","",""]
[null,0,null,null,"",null,0,null,null,null,null,null,"","",""]
[null,0,null,null,"",null,0,null,null,null,null,null,"","",""]
[null,0,null,null,"",null,0,null,null,null,null,null,"","",""]
[null,0,null,null,"",null,0,null,null,null,null,null,"","",""]
[null,0,null,null,"",null,0,null,null,null,null,null,"","",""]
[null,0,null,null,"",null,0,null,null,null,null,null,"","",""]
[null,0,null,null,"",null,0,null,null,null,null,null,"","",""]
[null,0,null,null,"",null,0,null,null,null,null,null,"","",""]
[null,0,null,null,"",null,0,null,null,null,null,null,"","",""]
[null,0,null,null,"",null,0,null,null,null,null,null,"","",""]
[null,0,null,null,"",null,0,null,null,null,null,null,"","",""]
[null,0,null,null,"",null,0,null,null,null,null,null,"","",""]
[null,0,null,null,"",null,0,null,null,null,null,null,"","",""]
[null,0,null,null,"",null,0,null,null,null,null,null,"","",""]
[null,0,null,null,"",null,0,null,null,null,null,null,"","",""]
[null,0,null,null,"",null,0,null,null,null,null,null,"","",""]
[null,0,null,null,"",null,0,null,null,null,null,null,"","",""]
[null,0,null,null,"",null,0,null,null,null,null,null,"","",""]
[null,0,null,null,"",null,0,null,null,null,null,null,"","",""]
[null,0,null,null,"",null,0,null,null,null,null,null,"","",""]
[null,0,null,null,"",null,0,null,null,null,null,null,"","",""]
[null,0,null,null,"",null,0,null,null,null,null,null,"","",""]
[null,0,null,null,"",null,0,null,null,null,null,null,"","",""]
[null,0,null,null,"",null,0,null,null,null,null,null,"","",""]
[null,0,null,null,"",null,0,null,null,null,null,null,"","",""]
[null,0,null,null,"",null,0,null,null,null,null,null,"","",""]
[null,0,null,null,"",null,0,null,null,null,null,null,"","",""]
[null,0,null,null,"",null,0,null,null,null,null,null,"","",""]
[null,0,null,null,"",null,0,null,null,null,null,null,"","",""]
[null,0,null,null,"",null,0,null,null,null,null,null,"","",""]
[null,0,null,null,"",null,0,null,null,null,null,null,"","",""]
[null,0,null,null,"",null,0,null,null,null,null,null,"","",""]
[null,0,null,null,"",null,0,null,null,null,null,null,"","",""]
[null,0,null,null,"",null,0,null,null,null,null,null,"","",""]
[null,0,null,null,"",null,0,null,null,null,null,null,"","",""]
[null,0,null,null,"",null,0,null,null,null,null,null,"","",""]
[null,0,null,null,"",null,0,null,null,null,null,null,"","",""]
[null,0,null,null,"",null,0,null,null,null,null,null,"","",""]
[null,0,null,null,"",null,0,null,null,null,null,null,"","",""]
[null,0,null,null,"",null,0,null,null,null,null,null,"","",""]
[null,0,null,null,"",null,0,null,null,null,null,null,"","",""]
[null,0,null,null,"",null,0,null,null,null,null,null,"","",""]
[null,0,null,null,"",null,0,null,null,null,null,null,"","",""]
[null,0,null,null,"",null,0,null,null,null,null,null,"","",""]
[null,0,null,null,"",null,0,null,null,null,null,null,"","",""]
[null,0,null,null,"",null,0,null,null,null,null,null,"","",""]
[null,0,null,null,"",null,0,null,null,null,null,null,"","",""]
[null,0,null,null,"",null,0,null,null,null,null,null,"","",""]
[null,0,null,null,"",null,0,null,null,null,null,null,"","",""]
[null,0,null,null,"",null,0,null,null,null,null,null,"","",""]
[null,0,null,null,"",null,0,null,null,null,null,null,"","",""]
[null,0,null,null,"",null,0,null,null,null,null,null,"","",""]
[null,0,null,null,"",null,0,null,null,null,null,null,"","",""]
[null,0,null,null,"",null,0,null,null,null,null,null,"","",""]
[null,0,null,null,"",null,0,null,null,null,null,null,"","",""]
[null,0,null,null,"",null,{"$f":"IFERROR(VLOOKUP(M329,tblCENOVNIK,3, FALSE),0)+IFERROR(VLOOKUP(N329,tblCENOVNIK,3, FALSE),0)+IFERROR(VLOOKUP(O329,tblCENOVNIK,3, FALSE),0)","v":0},null,null,null,null,null,"","",""]
[null,0,null,null,"",null,0,null,null,null,null,null,"","",""]
[null,0,null,null,"",null,0,null,null,null,null,null,"","",""]
[null,0,null,null,"",null,0,null,null,null,null,null,{"$f":"IFERROR(LEFT(E332,SEARCH(\",\",E332)-1),E332)","v":""},{"$f":"IFERROR(TRIM(IFERROR(MID(E332,SEARCH(\",\",E332)+1,SEARCH(\",\",E332,SEARCH(\",\",E332)+1)-SEARCH(\",\",E332)-1),\"\")),\"\")","v":""},{"$f":"IFERROR(TRIM(IF(LEN(E332)-LEN(SUBSTITUTE(E332,\",\",\"\"))=1,RIGHT(E332,LEN(E332)-SEARCH(\",\",E332)),RIGHT(E332,LEN(E332)-SEARCH(\",\",E332,SEARCH(\",\",E332)+1)))),\"\")","v":""}]
[null,0,null,null,"",null,0,null,null,null,null,null,"","",""]
[null,0,null,null,"",null,0,null,null,null,null,null,"","",""]
[null,0,null,null,"",null,0,null,null,null,null,null,"","",""]
[null,0,null,null,"",null,0,null,null,null,null,null,"","",""]
[null,0,null,null,"",null,0,null,null,null,null,null,"","",""]
[null,0,null,null,"",null,0,null,null,null,null,null,"","",""]
[null,0,null,null,"",null,0,null,null,null,null,null,"","",""]
[null,0,null,null,"",null,0,null,null,null,null,null,"","",""]
[null,0,null,null,"",null,0,null,null,null,null,null,"","",""]
[null,0,null,null,"",null,0,null,null,null,null,null,"","",""]
[null,0,null,null,"",null,0,null,null,null,null,null,"","",""]
[null,0,null,null,"",null,0,null,null,null,null,null,"","",""]
[null,0,null,null,"",null,0,null,null,null,null,null,"","",""]
[null,0,null,null,"",null,0,null,null,null,null,null,"","",""]
[null,0,null,null,"",null,0,null,null,null,null,null,"","",""]
[null,0,null,null,"",null,0,null,null,null,null,null,"","",""]
[null,0,null,null,"",null,0,null,null,null,null,null,"","",""]
[null,0,null,null,"",null,0,null,null,null,null,null,"","",""]
[null,0,null,null,"",null,0,null,null,null,null,null,"","",""]
[null,0,null,null,"",null,0,null,null,null,null,null,"","",""]
[null,0,null,null,"",null,0,null,null,null,null,null,"","",""]
[null,0,null,null,"",null,0,null,null,null,null,null,"","",""]
[null,0,null,null,"",null,0,null,null,null,null,null,"","",""]
[null,0,null,null,"",null,0,null,null,null,null,null,"","",""]
[null,0,null,null,"",null,0,null,null,null,null,null,"","",""]
[null,0,null,null,"",null,0,null,null,null,null,null,"","",""]
[null,0,null,null,"",null,0,null,null,null,null,null,"","",""]
[null,0,null,null,"",null,0,null,null,null,null,null,"","",""]
[null,0,null,null,"",null,0,null,null,null,null,null,"","",""]
[null,0,null,null,"",null,0,null,null,null,null,null,"","",""]
[null,0,null,null,"",null,0,null,null,null,null,null,"","",""]
[null,0,null,null,"",null,0,null,null,null,null,null,"","",""]
[null,0,null,null,"",null,0,null,null,null,null,null,"","",""]
[null,0,null,null,"",null,0,null,null,null,null,null,"","",""]
[null,0,null,null,"",null,0,null,null,null,null,null,"","",""]
[null,0,null,null,"",null,0,null,null,null,null,null,"","",""]
[null,0,null,null,"",null,0,null,null,null,null,null,"","",""]
[null,0,null,null,"",null,0,null,null,null,null,null,"","",""]
[null,0,null,null,"",null,0,null,null,null,null,null,"","",""]
[null,0,null,null,"",null,0,null,null,null,null,null,"","",""]
[null,0,null,null,"",null,0,null,null,null,null,null,"","",""]
[null,0,null,null,"",null,0,null,null,null,null,null,"","",""]
[null,0,null,null,"",null,0,null,null,null,null,null,"","",""]
[null,0,null,null,"",null,0,null,null,null,null,null,"","",""]
[null,0,null,null,"",null,0,null,null,null,null,null,"","",""]
[null,0,null,null,"",null,0,null,null,null,null,null,"","",""]
[null,0,null,null,"",null,0,null,null,null,null,null,"","",""]
[null,0,null,null,"",null,0,null,null,null,null,null,"","",""]
[null,0,null,null,"",null,0,null,null,null,null,null,"","",""]
[null,0,null,null,"",null,0,null,null,null,null,null,"","",""]
[null,0,null,null,"",null,0,null,null,null,null,null,"","",""]
[null,0,null,null,"",null,0,null,null,null,null,null,"","",""]
[null,0,null,null,"",null,0,null,null,null,null,null,"","",""]
[null,0,null,null,"",null,0,null,null,null,null,null,"","",""]
[null,0,null,null,"",null,0,null,null,null,null,null,"","",""]
[null,0,null,null,"",null,0,null,null,null,null,null,"","",""]
[null,0,null,null,"",null,0,null,null,null,null,null,"","",""]
[null,0,null,null,"",null,0,null,null,null,null,null,"","",""]
[null,0,null,null,"",null,0,null,null,null,null,null,"","",""]
[null,0,null,null,"",null,0,null,null,null,null,null,"","",""]
[null,0,null,null,"",null,{"$f":"IFERROR(VLOOKUP(M393,tblCENOVNIK,3, FALSE),0)+IFERROR(VLOOKUP(N393,tblCENOVNIK,3, FALSE),0)+IFERROR(VLOOKUP(O393,tblCENOVNIK,3, FALSE),0)","v":0},null,null,null,null,null,"","",""]
[null,0,null,null,"",null,0,null,null,null,null,null,"","",""]
[null,0,null,null,"",null,0,null,null,null,null,null,"","",""]
[null,0,null,null,"",null,0,null,null,null,null,null,{"$f":"IFERROR(LEFT(E396,SEARCH(\",\",E396)-1),E396)","v":""},{"$f":"IFERROR(TRIM(IFERROR(MID(E396,SEARCH(\",\",E396)+1,SEARCH(\",\",E396,SEARCH(\",\",E396)+1)-SEARCH(\",\",E396)-1),\"\")),\"\")","v":""},{"$f":"IFERROR(TRIM(IF(LEN(E396)-LEN(SUBSTITUTE(E396,\",\",\"\"))=1,RIGHT(E396,LEN(E396)-SEARCH(\",\",E396)),RIGHT(E396,LEN(E396)-SEARCH(\",\",E396,SEARCH(\",\",E396)+1)))),\"\")","v":""}]
[null,0,null,null,"",null,0,null,null,null,null,null,"","",""]
[null,0,null,null,"",null,0,null,null,null,null,null,"","",""]
[null,0,null,null,"",null,0,null,null,null,null,null,"","",""]
[null,0,null,null,"",null,0,null,null,null,null,null,"","",""]
[null,0,null,null,"",null,0,null,null,null,null,null,"","",""]
[null,0,null,null,"",null,0,null,null,null,null,null,"","",""]
[null,0,null,null,"",null,0,null,null,null,null,null,"","",""]
[null,0,null,null,"",null,0,null,null,null,null,null,"","",""]
[null,0,null,null,"",null,0,null,null,null,null,null,"","",""]
[null,0,null,null,"",null,0,null,null,null,null,null,"","",""]
[null,0,null,null,"",null,0,null,null,null,null,null,"","",""]
[null,0,null,null,"",null,0,null,null,null,null,null,"","",""]
[null,0,null,null,"",null,0,null,null,null,null,null,"","",""]
[null,0,null,null,"",null,0,null,null,null,null,null,"","",""]
[null,0,null,null,"",null,0,null,null,null,null,null,"","",""]
[null,0,null,null,"",null,0,null,null,null,null,null,"","",""]
[null,0,null,null,"",null,0,null,null,null,null,null,"","",""]
[null,0,null,null,"",null,0,null,null,null,null,null,"","",""]
[null,0,null,null,"",null,0,null,null,null,null,null,"","",""]
[null,0,null,null,"",null,0,null,null,null,null,null,"","",""]
[null,0,null,null,"",null,0,null,null,null,null,null,"","",""]
[null,0,null,null,"",null,0,null,null,null,null,null,"","",""]
[null,0,null,null,"",null,0,null,null,null,null,null,"","",""]
[null,0,null,null,"",null,0,null,null,null,null,null,"","",""]
[null,0,null,null,"",null,0,null,null,null,null,null,"","",""]
[null,0,null,null,"",null,0,null,null,null,null,null,"","",""]
[null,0,null,null,"",null,0,null,null,null,null,null,"","",""]
[null,0,null,null,"",null,0,null,null,null,null,null,"","",""]
[null,0,null,null,"",null,0,null,null,null,null,null,"","",""]
[null,0,null,null,"",null,0,null,null,null,null,null,"","",""]
[null,0,null,null,"",null,0,null,null,null,null,null,"","",""]
[null,0,null,null,"",null,0,null,null,null,null,null,"","",""]
[null,0,null,null,"",null,0,null,null,null,null,null,"","",""]
[null,0,null,null,"",null,0,null,null,null,null,null,"","",""]
[null,0,null,null,"",null,0,null,null,null,null,null,"","",""]
[null,0,null,null,"",null,0,null,null,null,null,null,"","",""]
[null,0,null,null,"",null,0,null,null,null,null,null,"","",""]
[null,0,null,null,"",null,0,null,null,null,null,null,"","",""]
[null,0,null,null,"",null,0,null,null,null,null,null,"","",""]
[null,0,null,null,"",null,0,null,null,null,null,null,"","",""]
[null,0,null,null,"",null,0,null,null,null,null,null,"","",""]
[null,0,null,null,"",null,0,null,null,null,null,null,"","",""]
[null,0,null,null,"",null,0,null,null,null,null,null,"","",""]
[null,0,null,null,"",null,0,null,null,null,null,null,"","",""]
[null,0,null,null,"",null,0,null,null,null,null,null,"","",""]
[null,0,null,null,"",null,0,null,null,null,null,null,"","",""]
[null,0,null,null,"",null,0,null,null,null,null,null,"","",""]
[null,0,null,null,"",null,0,null,null,null,null,null,"","",""]
[null,0,null,null,"",null,0,null,null,null,null,null,"","",""]
[null,0,null,null,"",null,0,null,null,null,null,null,"","",""]
[null,0,null,null,"",null,0,null,null,null,null,null,"","",""]
[null,0,null,null,"",null,0,null,null,null,null,null,"","",""]
[null,0,null,null,"",null,0,null,null,null,null,null,"","",""]
[null,0,null,null,"",null,0,null,null,null,null,null,"","",""]
[null,0,null,null,"",null,0,null,null,null,null,null,"","",""]
[null,0,null,null,"",null,0,null,null,null,null,null,"","",""]
[null,0,null,null,"",null,0,null,null,null,null,null,"","",""]
[null,0,null,null,"",null,0,null,null,null,null,null,"","",""]
[null,0,null,null,"",null,0,null,null,null,null,null,"","",""]
[null,0,null,null,"",null,0,null,null,null,null,null,"","",""]
[null,0,null,null,"",null,{"$f":"IFERROR(VLOOKUP(M457,tblCENOVNIK,3, FALSE),0)+IFERROR(VLOOKUP(N457,tblCENOVNIK,3, FALSE),0)+IFERROR(VLOOKUP(O457,tblCENOVNIK,3, FALSE),0)","v":0},null,null,null,null,null,"","",""]
[null,0,null,null,"",null,0,null,null,null,null,null,"","",""]
[null,0,null,null,"",null,0,null,null,null,null,null,"","",""]
[null,0,null,null,"",null,0,null,null,null,null,null,{"$f":"IFERROR(LEFT(E460,SEARCH(\",\",E460)-1),E460)","v":""},{"$f":"IFERROR(TRIM(IFERROR(MID(E460,SEARCH(\",\",E460)+1,SEARCH(\",\",E460,SEARCH(\",\",E460)+1)-SEARCH(\",\",E460)-1),\"\")),\"\")","v":""},{"$f":"IFERROR(TRIM(IF(LEN(E460)-LEN(SUBSTITUTE(E460,\",\",\"\"))=1,RIGHT(E460,LEN(E460)-SEARCH(\",\",E460)),RIGHT(E460,LEN(E460)-SEARCH(\",\",E460,SEARCH(\",\",E460)+1)))),\"\")","v":""}]
[null,0,null,null,"",null,0,null,null,null,null,null,"","",""]
[null,0,null,null,"",null,0,null,null,null,null,null,"","",""]
[null,0,null,null,"",null,0,null,null,null,null,null,"","",""]
[null,0,null,null,"",null,0,null,null,null,null,null,"","",""]
[null,0,null,null,"",null,0,null,null,null,null,null,"","",""]
[null,0,null,null,"",null,0,null,null,null,null,null,"","",""]
[null,0,null,null,"",null,0,null,null,null,null,null,"","",""]
[null,0,null,null,"",null,0,null,null,null,null,null,"","",""]
[null,0,null,null,"",null,0,null,null,null,null,null,"","",""]
[null,0,null,null,"",null,0,null,null,null,null,null,"","",""]
[null,0,null,null,"",null,0,null,null,null,null,null,"","",""]
[null,0,null,null,"",null,0,null,null,null,null,null,"","",""]
[null,0,null,null,"",null,0,null,null,null,null,null,"","",""]
[null,0,null,null,"",null,0,null,null,null,null,null,"","",""]
[null,0,null,null,"",null,0,null,null,null,null,null,"","",""]
[null,0,null,null,"",null,0,null,null,null,null,null,"","",""]
[null,0,null,null,"",null,0,null,null,null,null,null,"","",""]
[null,0,null,null,"",null,0,null,null,null,null,null,"","",""]
[null,0,null,null,"",null,0,null,null,null,null,null,"","",""]
[null,0,null,null,"",null,0,null,null,null,null,null,"","",""]
[null,0,null,null,"",null,0,null,null,null,null,null,"","",""]
[null,0,null,null,"",null,0,null,null,null,null,null,"","",""]
[null,0,null,null,"",null,0,null,null,null,null,null,"","",""]
[null,0,null,null,"",null,0,null,null,null,null,null,"","",""]
[null,0,null,null,"",null,0,null,null,null,null,null,"","",""]
[null,0,null,null,"",null,0,null,null,null,null,null,"","",""]
[null,0,null,null,"",null,0,null,null,null,null,null,"","",""]
[null,0,null,null,"",null,0,null,null,null,null,null,"","",""]
[null,0,null,null,"",null,0,null,null,null,null,null,"","",""]
[null,0,null,null,"",null,0,null,null,null,null,null,"","",""]
[null,0,null,null,"",null,0,null,null,null,null,null,"","",""]
[null,0,null,null,"",null,0,null,null,null,null,null,"","",""]
[null,0,null,null,"",null,0,null,null,null,null,null,"","",""]
[null,0,null,null,"",null,0,null,null,null,null,null,"","",""]
[null,0,null,null,"",null,0,null,null,null,null,null,"","",""]
[null,0,null,null,"",null,0,null,null,null,null,null,"","",""]
[null,0,null,null,"",null,0,null,null,null,null,null,"","",""]
[null,0,null,null,"",null,0,null,null,null,null,null,"","",""]
[null,0,null,null,"",null,0,null,null,null,null,null,"","",""]
[null,0,null,null,"",null,0,null,null,null,null,null,"","",""]
[null,0,null,null,"",null,0,null,null,null,null,null,"","",""]
[null,0,null,null,"",null,0,null,null,null,null,null,"","",""]
[null,0,null,null,"",null,0,null,null,null,null,null,"","",""]
[null,0,null,null,"",null,0,null,null,null,null,null,"","",""]
[null,0,null,null,"",null,0,null,null,null,null,null,"","",""]
[null,0,null,null,"",null,0,null,null,null,null,null,"","",""]
[null,0,null,null,"",null,0,null,null,null,null,null,"","",""]
[null,0,null,null,"",null,0,null,null,null,null,null,"","",""]
[null,0,null,null,"",null,0,null,null,null,null,null,"","",""]
[null,0,null,null,"",null,0,null,null,null,null,null,"","",""]
[null,0,null,null,"",null,0,null,null,null,null,null,"","",""]
[null,0,null,null,"",null,0,null,null,null,null,null,"","",""]
[null,0,null,null,"",null,0,null,null,null,null,null,"","",""]
[null,0,null,null,"",null,0,null,null,null,null,null,"","",""]
[null,0,null,null,"",null,0,null,null,null,null,null,"","",""]
[null,0,null,null,"",null,0,null,null,null,null,null,"","",""]
[null,0,null,null,"",null,0,null,null,null,null,null,"","",""]
[null,0,null,null,"",null,0,null,null,null,null,null,"","",""]
[null,0,null,null,"",null,0,null,null,null,null,null,"","",""]
[null,0,null,null,"",null,0,null,null,null,null,null,"","",""]
[null,0,null,null,"",null,{"$f":"IFERROR(VLOOKUP(M521,tblCENOVNIK,3, FALSE),0)+IFERROR(VLOOKUP(N521,tblCENOVNIK,3, FALSE),0)+IFERROR(VLOOKUP(O521,tblCENOVNIK,3, FALSE),0)","v":0},null,null,null,null,null,"","",""]
[null,0,null,null,"",null,0,null,null,null,null,null,"","",""]
[null,0,null,null,"",null,0,null,null,null,null,null,"","",""]
[null,0,null,null,"",null,0,null,null,null,null,null,{"$f":"IFERROR(LEFT(E524,SEARCH(\",\",E524)-1),E524)","v":""},{"$f":"IFERROR(TRIM(IFERROR(MID(E524,SEARCH(\",\",E524)+1,SEARCH(\",\",E524,SEARCH(\",\",E524)+1)-SEARCH(\",\",E524)-1),\"\")),\"\")","v":""},{"$f":"IFERROR(TRIM(IF(LEN(E524)-LEN(SUBSTITUTE(E524,\",\",\"\"))=1,RIGHT(E524,LEN(E524)-SEARCH(\",\",E524)),RIGHT(E524,LEN(E524)-SEARCH(\",\",E524,SEARCH(\",\",E524)+1)))),\"\")","v":""}]
[null,0,null,null,"",null,0,null,null,null,null,null,"","",""]
[null,0,null,null,"",null,0,null,null,null,null,null,"","",""]
[null,0,null,null,"",null,0,null,null,null,null,null,"","",""]
[null,0,null,null,"",null,0,null,null,null,null,null,"","",""]
[null,0,null,null,"",null,0,null,null,null,null,null,"","",""]
[null,0,null,null,"",null,0,null,null,null,null,null,"","",""]
[null,0,null,null,"",null,0,null,null,null,null,null,"","",""]
[null,0,null,null,"",null,0,null,null,null,null,null,"","",""]
[null,0,null,null,"",null,0,null,null,null,null,null,"","",""]
[null,0,null,null,"",null,0,null,null,null,null,null,"","",""]
[null,0,null,null,"",null,0,null,null,null,null,null,"","",""]
[null,0,null,null,"",null,0,null,null,null,null,null,"","",""]
[null,0,null,null,"",null,0,null,null,null,null,null,"","",""]
[null,0,null,null,"",null,0,null,null,null,null,null,"","",""]
[null,0,null,null,"",null,0,null,null,null,null,null,"","",""]
[null,0,null,null,"",null,0,null,null,null,null,null,"","",""]
[null,0,null,null,"",null,0,null,null,null,null,null,"","",""]
[null,0,null,null,"",null,0,null,null,null,null,null,"","",""]
[null,0,null,null,"",null,0,null,null,null,null,null,"","",""]
[null,0,null,null,"",null,0,null,null,null,null,null,"","",""]
[null,0,null,null,"",null,0,null,null,null,null,null,"","",""]
[null,0,null,null,"",null,0,null,null,null,null,null,"","",""]
[null,0,null,null,"",null,0,null,null,null,null,null,"","",""]
[null,0,null,null,"",null,0,null,null,null,null,null,"","",""]
[null,0,null,null,"",null,0,null,null,null,null,null,"","",""]
[null,0,null,null,"",null,0,null,null,null,null,null,"","",""]
[null,0,null,null,"",null,0,null,null,null,null,null,"","",""]
[null,0,null,null,"",null,0,null,null,null,null,null,"","",""]
[null,0,null,null,"",null,0,null,null,null,null,null,"","",""]
[null,0,null,null,"",null,0,null,null,null,null,null,"","",""]
[null,0,null,null,"",null,0,null,null,null,null,null,"","",""]
[null,0,null,null,"",null,0,null,null,null,null,null,"","",""]
[null,0,null,null,"",null,0,null,null,null,null,null,"","",""]
[null,0,null,null,"",null,0,null,null,null,null,null,"","",""]
[null,0,null,null,"",null,0,null,null,null,null,null,"","",""]
[null,0,null,null,"",null,0,null,null,null,null,null,"","",""]
[null,0,null,null,"",null,0,null,null,null,null,null,"","",""]
[null,0,null,null,"",null,0,null,null,null,null,null,"","",""]
[null,0,null,null,"",null,0,null,null,null,null,null,"","",""]
[null,0,null,null,"",null,0,null,null,null,null,null,"","",""]
[null,0,null,null,"",null,0,null,null,null,null,null,"","",""]
[null,0,null,null,"",null,0,null,null,null,null,null,"","",""]
[null,0,null,null,"",null,0,null,null,null,null,null,"","",""]
[null,0,null,null,"",null,0,null,null,null,null,null,"","",""]
[null,0,null,null,"",null,0,null,null,null,null,null,"","",""]
[null,0,null,null,"",null,0,null,null,null,null,null,"","",""]
[null,0,null,null,"",null,0,null,null,null,null,null,"","",""]
[null,0,null,null,"",null,0,null,null,null,null,null,"","",""]
[null,0,null,null,"",null,0,null,null,null,null,null,"","",""]
[null,0,null,null,"",null,0,null,null,null,null,null,"","",""]
[null,0,null,null,"",null,0,null,null,null,null,null,"","",""]
[null,0,null,null,"",null,0,null,null,null,null,null,"","",""]
[null,0,null,null,"",null,0,null,null,null,null,null,"","",""]
[null,0,null,null,"",null,0,null,null,null,null,null,"","",""]
[null,0,null,null,"",null,0,null,null,null,null,null,"","",""]
[null,0,null,null,"",null,0,null,null,null,null,null,"","",""]
[null,0,null,null,"",null,0,null,null,null,null,null,"","",""]
[null,0,null,null,"",null,0,null,null,null,null,null,"","",""]
[null,0,null,null,"",null,0,null,null,null,null,null,"","",""]
[null,0,null,null,"",null,0,null,null,null,null,null,"","",""]
[null,0,null,null,"",null,{"$f":"IFERROR(VLOOKUP(M585,tblCENOVNIK,3, FALSE),0)+IFERROR(VLOOKUP(N585,tblCENOVNIK,3, FALSE),0)+IFERROR(VLOOKUP(O585,tblCENOVNIK,3, FALSE),0)","v":0},null,null,null,null,null,"","",""]
[null,0,null,null,"",null,0,null,null,null,null,null,"","",""]
[null,0,null,null,"",null,0,null,null,null,null,null,"","",""]
[null,0,null,null,"",null,0,null,null,null,null,null,{"$f":"IFERROR(LEFT(E588,SEARCH(\",\",E588)-1),E588)","v":""},{"$f":"IFERROR(TRIM(IFERROR(MID(E588,SEARCH(\",\",E588)+1,SEARCH(\",\",E588,SEARCH(\",\",E588)+1)-SEARCH(\",\",E588)-1),\"\")),\"\")","v":""},{"$f":"IFERROR(TRIM(IF(LEN(E588)-LEN(SUBSTITUTE(E588,\",\",\"\"))=1,RIGHT(E588,LEN(E588)-SEARCH(\",\",E588)),RIGHT(E588,LEN(E588)-SEARCH(\",\",E588,SEARCH(\",\",E588)+1)))),\"\")","v":""}]
[null,0,null,null,"",null,0,null,null,null,null,null,"","",""]
[null,0,null,null,"",null,0,null,null,null,null,null,"","",""]
[null,0,null,null,"",null,0,null,null,null,null,null,"","",""]
[null,0,null,null,"",null,0,null,null,null,null,null,"","",""]
[null,0,null,null,"",null,0,null,null,null,null,null,"","",""]
[null,0,null,null,"",null,0,null,null,null,null,null,"","",""]
[null,0,null,null,"",null,0,null,null,null,null,null,"","",""]
[null,0,null,null,"",null,0,null,null,null,null,null,"","",""]
[null,0,null,null,"",null,0,null,null,null,null,null,"","",""]
[null,0,null,null,"",null,0,null,null,null,null,null,"","",""]
[null,0,null,null,"",null,0,null,null,null,null,null,"","",""]
[null,0,null,null,"",null,0,null,null,null,null,null,"","",""]
[null,0,null,null,"",null,0,null,null,null,null,null,"","",""]
[null,0,null,null,"",null,0,null,null,null,null,null,"","",""]
[null,0,null,null,"",null,0,null,null,null,null,null,"","",""]
[null,0,null,null,"",null,0,null,null,null,null,null,"","",""]
[null,0,null,null,"",null,0,null,null,null,null,null,"","",""]
[null,0,null,null,"",null,0,null,null,null,null,null,"","",""]
[null,0,null,null,"",null,0,null,null,null,null,null,"","",""]
[null,0,null,null,"",null,0,null,null,null,null,null,"","",""]
[null,0,null,null,"",null,0,null,null,null,null,null,"","",""]
[null,0,null,null,"",null,0,null,null,null,null,null,"","",""]
[null,0,null,null,"",null,0,null,null,null,null,null,"","",""]
[null,0,null,null,"",null,0,null,null,null,null,null,"","",""]
[null,0,null,null,"",null,0,null,null,null,null,null,"","",""]
[null,0,null,null,"",null,0,null,null,null,null,null,"","",""]
[null,0,null,null,"",null,0,null,null,null,null,null,"","",""]
[null,0,null,null,"",null,0,null,null,null,null,null,"","",""]
[null,0,null,null,"",null,0,null,null,null,null,null,"","",""]
[null,0,null,null,"",null,0,null,null,null,null,null,"","",""]
[null,0,null,null,"",null,0,null,null,null,null,null,"","",""]
[null,0,null,null,"",null,0,null,null,null,null,null,"","",""]
[null,0,null,null,"",null,0,null,null,null,null,null,"","",""]
[null,0,null,null,"",null,0,null,null,null,null,null,"","",""]
[null,0,null,null,"",null,0,null,null,null,null,null,"","",""]
[null,0,null,null,"",null,0,null,null,null,null,null,"","",""]
[null,0,null,null,"",null,0,null,null,null,null,null,"","",""]
[null,0,null,null,"",null,0,null,null,null,null,null,"","",""]
[null,0,null,null,"",null,0,null,null,null,null,null,"","",""]
[null,0,null,null,"",null,0,null,null,null,null,null,"","",""]
[null,0,null,null,"",null,0,null,null,null,null,null,"","",""]
[null,0,null,null,"",null,0,null,null,null,null,null,"","",""]
[null,0,null,null,"",null,0,null,null,null,null,null,"","",""]
[null,0,null,null,"",null,0,null,null,null,null,null,"","",""]
[null,0,null,null,"",null,0,null,null,null,null,null,"","",""]
[null,0,null,null,"",null,0,null,null,null,null,null,"","",""]
[null,0,null,null,"",null,0,null,null,null,null,null,"","",""]
[null,0,null,null,"",null,0,null,null,null,null,null,"","",""]
[null,0,null,null,"",null,0,null,null,null,null,null,"","",""]
[null,0,null,null,"",null,0,null,null,null,null,null,"","",""]
[null,0,null,null,"",null,0,null,null,null,null,null,"","",""]
[null,0,null,null,"",null,0,null,null,null,null,null,"","",""]
[null,0,null,null,"",null,0,null,null,null,null,null,"","",""]
[null,0,null,null,"",null,0,null,null,null,null,null,"","",""]
[null,0,null,null,"",null,0,null,null,null,null,null,"","",""]
[null,0,null,null,"",null,0,null,null,null,null,null,"","",""]
[null,0,null,null,"",null,0,null,null,null,null,null,"","",""]
[null,0,null,null,"",null,0,null,null,null,null,null,"","",""]
[null,0,null,null,"",null,0,null,null,null,null,null,"","",""]
[null,0,null,null,"",null,0,null,null,null,null,null,"","",""]
[null,0,null,null,"",null,{"$f":"IFERROR(VLOOKUP(M649,tblCENOVNIK,3, FALSE),0)+IFERROR(VLOOKUP(N649,tblCENOVNIK,3, FALSE),0)+IFERROR(VLOOKUP(O649,tblCENOVNIK,3, FALSE),0)","v":0},null,null,null,null,null,"","",""]
[null,0,null,null,"",null,0,null,null,null,null,null,"","",""]
[null,0,null,null,"",null,0,null,null,null,null,null,"","",""]
[null,0,null,null,"",null,0,null,null,null,null,null,{"$f":"IFERROR(LEFT(E652,SEARCH(\",\",E652)-1),E652)","v":""},{"$f":"IFERROR(TRIM(IFERROR(MID(E652,SEARCH(\",\",E652)+1,SEARCH(\",\",E652,SEARCH(\",\",E652)+1)-SEARCH(\",\",E652)-1),\"\")),\"\")","v":""},{"$f":"IFERROR(TRIM(IF(LEN(E652)-LEN(SUBSTITUTE(E652,\",\",\"\"))=1,RIGHT(E652,LEN(E652)-SEARCH(\",\",E652)),RIGHT(E652,LEN(E652)-SEARCH(\",\",E652,SEARCH(\",\",E652)+1)))),\"\")","v":""}]
[null,0,null,null,"",null,0,null,null,null,null,null,"","",""]
[null,0,null,null,"",null,0,null,null,null,null,null,"","",""]
[null,0,null,null,"",null,0,null,null,null,null,null,"","",""]
[null,0,null,null,"",null,0,null,null,null,null,null,"","",""]
[null,0,null,null,"",null,0,null,null,null,null,null,"","",""]
[null,0,null,null,"",null,0,null,null,null,null,null,"","",""]
[null,0,null,null,"",null,0,null,null,null,null,null,"","",""]
[null,0,null,null,"",null,0,null,null,null,null,null,"","",""]
[null,0,null,null,"",null,0,null,null,null,null,null,"","",""]
[null,0,null,null,"",null,0,null,null,null,null,null,"","",""]
[null,0,null,null,"",null,0,null,null,null,null,null,"","",""]
[null,0,null,null,"",null,0,null,null,null,null,null,"","",""]
[null,0,null,null,"",null,0,null,null,null,null,null,"","",""]
[null,0,null,null,"",null,0,null,null,null,null,null,"","",""]
[null,0,null,null,"",null,0,null,null,null,null,null,"","",""]
[null,0,null,null,"",null,0,null,null,null,null,null,"","",""]
[null,0,null,null,"",null,0,null,null,null,null,null,"","",""]
[null,0,null,null,"",null,0,null,null,null,null,null,"","",""]
[null,0,null,null,"",null,0,null,null,null,null,null,"","",""]
[null,0,null,null,"",null,0,null,null,null,null,null,"","",""]
[null,0,null,null,"",null,0,null,null,null,null,null,"","",""]
[null,0,null,null,"",null,0,null,null,null,null,null,"","",""]
[null,0,null,null,"",null,0,null,null,null,null,null,"","",""]
[null,0,null,null,"",null,0,null,null,null,null,null,"","",""]
[null,0,null,null,"",null,0,null,null,null,null,null,"","",""]
[null,0,null,null,"",null,0,null,null,null,null,null,"","",""]
[null,0,null,null,"",null,0,null,null,null,null,null,"","",""]
[null,0,null,null,"",null,0,null,null,null,null,null,"","",""]
[null,0,null,null,"",null,0,null,null,null,null,null,"","",""]
[null,0,null,null,"",null,0,null,null,null,null,null,"","",""]
[null,0,null,null,"",null,0,null,null,null,null,null,"","",""]
[null,0,null,null,"",null,0,null,null,null,null,null,"","",""]
[null,0,null,null,"",null,0,null,null,null,null,null,"","",""]
[null,0,null,null,"",null,0,null,null,null,null,null,"","",""]
[null,0,null,null,"",null,0,null,null,null,null,null,"","",""]
[null,0,null,null,"",null,0,null,null,null,null,null,"","",""]
[null,0,null,null,"",null,0,null,null,null,null,null,"","",""]
[null,0,null,null,"",null,0,null,null,null,null,null,"","",""]
[null,0,null,null,"",null,0,null,null,null,null,null,"","",""]
[null,0,null,null,"",null,0,null,null,null,null,null,"","",""]
[null,0,null,null,"",null,0,null,null,null,null,null,"","",""]
[null,0,null,null,"",null,0,null,null,null,null,null,"","",""]
[null,0,null,null,"",null,0,null,null,null,null,null,"","",""]
[null,0,null,null,"",null,0,null,null,null,null,null,"","",""]
[null,0,null,null,"",null,0,null,null,null,null,null,"","",""]
[null,0,null,null,"",null,0,null,null,null,null,null,"","",""]
[null,0,null,null,"",null,0,null,null,null,null,null,"","",""]
[null,0,null,null,"",null,0,null,null,null,null,null,"","",""]
[null,0,null,null,"",null,0,null,null,null,null,null,"","",""]
[null,0,null,null,"",null,0,null,null,null,null,null,"","",""]
[null,0,null,null,"",null,0,null,null,null,null,null,"","",""]
[null,0,null,null,"",null,0,null,null,null,null,null,"","",""]
[null,0,null,null,"",null,0,null,null,null,null,null,"","",""]
[null,0,null,null,"",null,0,null,null,null,null,null,"","",""]
[null,0,null,null,"",null,0,null,null,null,null,null,"","",""]
[null,0,null,null,"",null,0,null,null,null,null,null,"","",""]
[null,0,null,null,"",null,0,null,null,null,null,null,"","",""]
[null,0,null,null,"",null,0,null,null,null,null,null,"","",""]
[null,0,null,null,"",null,0,null,null,null,null,null,"","",""]
[null,0,null,null,"",null,0,null,null,null,null,null,"","",""]
[null,0,null,null,"",null,{"$f":"IFERROR(VLOOKUP(M713,tblCENOVNIK,3, FALSE),0)+IFERROR(VLOOKUP(N713,tblCENOVNIK,3, FALSE),0)+IFERROR(VLOOKUP(O713,tblCENOVNIK,3, FALSE),0)","v":0},null,null,null,null,null,"","",""]
[null,0,null,null,"",null,0,null,null,null,null,null,"","",""]
[null,0,null,null,"",null,0,null,null,null,null,null,"","",""]
[null,0,null,null,"",null,0,null,null,null,null,null,{"$f":"IFERROR(LEFT(E716,SEARCH(\",\",E716)-1),E716)","v":""},{"$f":"IFERROR(TRIM(IFERROR(MID(E716,SEARCH(\",\",E716)+1,SEARCH(\",\",E716,SEARCH(\",\",E716)+1)-SEARCH(\",\",E716)-1),\"\")),\"\")","v":""},{"$f":"IFERROR(TRIM(IF(LEN(E716)-LEN(SUBSTITUTE(E716,\",\",\"\"))=1,RIGHT(E716,LEN(E716)-SEARCH(\",\",E716)),RIGHT(E716,LEN(E716)-SEARCH(\",\",E716,SEARCH(\",\",E716)+1)))),\"\")","v":""}]
[null,0,null,null,"",null,0,null,null,null,null,null,"","",""]
[null,0,null,null,"",null,0,null,null,null,null,null,"","",""]
[null,0,null,null,"",null,0,null,null,null,null,null,"","",""]
[null,0,null,null,"",null,0,null,null,null,null,null,"","",""]
[null,0,null,null,"",null,0,null,null,null,null,null,"","",""]
[null,0,null,null,"",null,0,null,null,null,null,null,"","",""]
[null,0,null,null,"",null,0,null,null,null,null,null,"","",""]
[null,0,null,null,"",null,0,null,null,null,null,null,"","",""]
[null,0,null,null,"",null,0,null,null,null,null,null,"","",""]
[null,0,null,null,"",null,0,null,null,null,null,null,"","",""]
[null,0,null,null,"",null,0,null,null,null,null,null,"","",""]
[null,0,null,null,"",null,0,null,null,null,null,null,"","",""]
[null,0,null,null,"",null,0,null,null,null,null,null,"","",""]
[null,0,null,null,"",null,0,null,null,null,null,null,"","",""]
[null,0,null,null,"",null,0,null,null,null,null,null,"","",""]
[null,0,null,null,"",null,0,null,null,null,null,null,"","",""]
[null,0,null,null,"",null,0,null,null,null,null,null,"","",""]
[null,0,null,null,"",null,0,null,null,null,null,null,"","",""]
[null,0,null,null,"",null,0,null,null,null,null,null,"","",""]
[null,0,null,null,"",null,0,null,null,null,null,null,"","",""]
[null,0,null,null,"",null,0,null,null,null,null,null,"","",""]
[null,0,null,null,"",null,0,null,null,null,null,null,"","",""]
[null,0,null,null,"",null,0,null,null,null,null,null,"","",""]
[null,0,null,null,"",null,0,null,null,null,null,null,"","",""]
[null,0,null,null,"",null,0,null,null,null,null,null,"","",""]
[null,0,null,null,"",null,0,null,null,null,null,null,"","",""]
[null,0,null,null,"",null,0,null,null,null,null,null,"","",""]
[null,0,null,null,"",null,0,null,null,null,null,null,"","",""]
[null,0,null,null,"",null,0,null,null,null,null,null,"","",""]
[null,0,null,null,"",null,0,null,null,null,null,null,"","",""]
[null,0,null,null,"",null,0,null,null,null,null,null,"","",""]
[null,0,null,null,"",null,0,null,null,null,null,null,"","",""]
[null,0,null,null,"",null,0,null,null,null,null,null,"","",""]
[null,0,null,null,"",null,0,null,null,null,null,null,"","",""]
[null,0,null,null,"",null,0,null,null,null,null,null,"","",""]
[null,0,null,null,"",null,0,null,null,null,null,null,"","",""]
[null,0,null,null,"",null,0,null,null,null,null,null,"","",""]
[null,0,null,null,"",null,0,null,null,null,null,null,"","",""]
[null,0,null,null,"",null,0,null,null,null,null,null,"","",""]
[null,0,null,null,"",null,0,null,null,null,null,null,"","",""]
[null,0,null,null,"",null,0,null,null,null,null,null,"","",""]
[null,0,null,null,"",null,0,null,null,null,null,null,"","",""]
[null,0,null,null,"",null,0,null,null,null,null,null,"","",""]
[null,0,null,null,"",null,0,null,null,null,null,null,"","",""]
[null,0,null,null,"",null,0,null,null,null,null,null,"","",""]
[null,0,null,null,"",null,0,null,null,null,null,null,"","",""]
[null,0,null,null,"",null,0,null,null,null,null,null,"","",""]
[null,0,null,null,"",null,0,null,null,null,null,null,"","",""]
[null,0,null,null,"",null,0,null,null,null,null,null,"","",""]
[null,0,null,null,"",null,0,null,null,null,null,null,"","",""]
[null,0,null,null,"",null,0,null,null,null,null,null,"","",""]
[null,0,null,null,"",null,0,null,null,null,null,null,"","",""]
[null,0,null,null,"",null,0,null,null,null,null,null,"","",""]
[null,0,null,null,"",null,0,null,null,null,null,null,"","",""]
[null,0,null,null,"",null,0,null,null,null,null,null,"","",""]
[null,0,null,null,"",null,0,null,null,null,null,null,"","",""]
[null,0,null,null,"",null,0,null,null,null,null,null,"","",""]
[null,0,null,null,"",null,0,null,null,null,null,null,"","",""]
[null,0,null,null,"",null,0,null,null,null,null,null,"","",""]
[null,0,null,null,"",null,0,null,null,null,null,null,"","",""]
[null,0,null,null,"",null,{"$f":"IFERROR(VLOOKUP(M777,tblCENOVNIK,3, FALSE),0)+IFERROR(VLOOKUP(N777,tblCENOVNIK,3, FALSE),0)+IFERROR(VLOOKUP(O777,tblCENOVNIK,3, FALSE),0)","v":0},null,null,null,null,null,"","",""]
[null,0,null,null,"",null,0,null,null,null,null,null,"","",""]
[null,0,null,null,"",null,0,null,null,null,null,null,"","",""]
[null,0,null,null,"",null,0,null,null,null,null,null,{"$f":"IFERROR(LEFT(E780,SEARCH(\",\",E780)-1),E780)","v":""},{"$f":"IFERROR(TRIM(IFERROR(MID(E780,SEARCH(\",\",E780)+1,SEARCH(\",\",E780,SEARCH(\",\",E780)+1)-SEARCH(\",\",E780)-1),\"\")),\"\")","v":""},{"$f":"IFERROR(TRIM(IF(LEN(E780)-LEN(SUBSTITUTE(E780,\",\",\"\"))=1,RIGHT(E780,LEN(E780)-SEARCH(\",\",E780)),RIGHT(E780,LEN(E780)-SEARCH(\",\",E780,SEARCH(\",\",E780)+1)))),\"\")","v":""}]
[null,0,null,null,"",null,0,null,null,null,null,null,"","",""]
[null,0,null,null,"",null,0,null,null,null,null,null,"","",""]
[null,0,null,null,"",null,0,null,null,null,null,null,"","",""]
[null,0,null,null,"",null,0,null,null,null,null,null,"","",""]
[null,0,null,null,"",null,0,null,null,null,null,null,"","",""]
[null,0,null,null,"",null,0,null,null,null,null,null,"","",""]
[null,0,null,null,"",null,0,null,null,null,null,null,"","",""]
[null,0,null,null,"",null,0,null,null,null,null,null,"","",""]
[null,0,null,null,"",null,0,null,null,null,null,null,"","",""]
[null,0,null,null,"",null,0,null,null,null,null,null,"","",""]
[null,0,null,null,"",null,0,null,null,null,null,null,"","",""]
[null,0,null,null,"",null,0,null,null,null,null,null,"","",""]
[null,0,null,null,"",null,0,null,null,null,null,null,"","",""]
[null,0,null,null,"",null,0,null,null,null,null,null,"","",""]
[null,0,null,null,"",null,0,null,null,null,null,null,"","",""]
[null,0,null,null,"",null,0,null,null,null,null,null,"","",""]
[null,0,null,null,"",null,0,null,null,null,null,null,"","",""]
[null,0,null,null,"",null,0,null,null,null,null,null,"","",""]
[null,0,null,null,"",null,0,null,null,null,null,null,"","",""]
[null,0,null,null,"",null,0,null,null,null,null,null,"","",""]
[null,0,null,null,"",null,0,null,null,null,null,null,"","",""]
[null,0,null,null,"",null,0,null,null,null,null,null,"","",""]
[null,0,null,null,"",null,0,null,null,null,null,null,"","",""]
[null,0,null,null,"",null,0,null,null,null,null,null,"","",""]
[null,0,null,null,"",null,0,null,null,null,null,null,"","",""]
[null,0,null,null,"",null,0,null,null,null,null,null,"","",""]
[null,0,null,null,"",null,0,null,null,null,null,null,"","",""]
[null,0,null,null,"",null,0,null,null,null,null,null,"","",""]
[null,0,null,null,"",null,0,null,null,null,null,null,"","",""]
[null,0,null,null,"",null,0,null,null,null,null,null,"","",""]
[null,0,null,null,"",null,0,null,null,null,null,null,"","",""]
[null,0,null,null,"",null,0,null,null,null,null,null,"","",""]
[null,0,null,null,"",null,0,null,null,null,null,null,"","",""]
[null,0,null,null,"",null,0,null,null,null,null,null,"","",""]
[null,0,null,null,"",null,0,null,null,null,null,null,"","",""]
[null,0,null,null,"",null,0,null,null,null,null,null,"","",""]
[null,0,null,null,"",null,0,null,null,null,null,null,"","",""]
[null,0,null,null,"",null,0,null,null,null,null,null,"","",""]
[null,0,null,null,"",null,0,null,null,null,null,null,"","",""]
[null,0,null,null,"",null,0,null,null,null,null,null,"","",""]
[null,0,null,null,"",null,0,null,null,null,null,null,"","",""]
[null,0,null,null,"",null,0,null,null,null,null,null,"","",""]
[null,0,null,null,"",null,0,null,null,null,null,null,"","",""]
[null,0,null,null,"",null,0,null,null,null,null,null,"","",""]
[null,0,null,null,"",null,0,null,null,null,null,null,"","",""]
[null,0,null,null,"",null,0,null,null,null,null,null,"","",""]
[null,0,null,null,"",null,0,null,null,null,null,null,"","",""]
[null,0,null,null,"",null,0,null,null,null,null,null,"","",""]
[null,0,null,null,"",null,0,null,null,null,null,null,"","",""]
[null,0,null,null,"",null,0,null,null,null,null,null,"","",""]
[null,0,null,null,"",null,0,null,null,null,null,null,"","",""]
[null,0,null,null,"",null,0,null,null,null,null,null,"","",""]
[null,0,null,null,"",null,0,null,null,null,null,null,"","",""]
[null,0,null,null,"",null,0,null,null,null,null,null,"","",""]
[null,0,null,null,"",null,0,null,null,null,null,null,"","",""]
[null,0,null,null,"",null,0,null,null,null,null,null,"","",""]
[null,0,null,null,"",null,0,null,null,null,null,null,"","",""]
[null,0,null,null,"",null,0,null,null,null,null,null,"","",""]
[null,0,null,null,"",null,0,null,null,null,null,null,"","",""]
[null,0,null,null,"",null,0,null,null,null,null,null,"","",""]
[null,0,null,null,"",null,{"$f":"IFERROR(VLOOKUP(M841,tblCENOVNIK,3, FALSE),0)+IFERROR(VLOOKUP(N841,tblCENOVNIK,3, FALSE),0)+IFERROR(VLOOKUP(O841,tblCENOVNIK,3, FALSE),0)","v":0},null,null,null,null,null,"","",""]
[null,0,null,null,"",null,0,null,null,null,null,null,"","",""]
[null,0,null,null,"",null,0,null,null,null,null,null,"","",""]
[null,0,null,null,"",null,0,null,null,null,null,null,{"$f":"IFERROR(LEFT(E844,SEARCH(\",\",E844)-1),E844)","v":""},{"$f":"IFERROR(TRIM(IFERROR(MID(E844,SEARCH(\",\",E844)+1,SEARCH(\",\",E844,SEARCH(\",\",E844)+1)-SEARCH(\",\",E844)-1),\"\")),\"\")","v":""},{"$f":"IFERROR(TRIM(IF(LEN(E844)-LEN(SUBSTITUTE(E844,\",\",\"\"))=1,RIGHT(E844,LEN(E844)-SEARCH(\",\",E844)),RIGHT(E844,LEN(E844)-SEARCH(\",\",E844,SEARCH(\",\",E844)+1)))),\"\")","v":""}]
[null,0,null,null,"",null,0,null,null,null,null,null,"","",""]
[null,0,null,null,"",null,0,null,null,null,null,null,"","",""]
[null,0,null,null,"",null,0,null,null,null,null,null,"","",""]
[null,0,null,null,"",null,0,null,null,null,null,null,"","",""]
[null,0,null,null,"",null,0,null,null,null,null,null,"","",""]
[null,0,null,null,"",null,0,null,null,null,null,null,"","",""]
[null,0,null,null,"",null,0,null,null,null,null,null,"","",""]
[null,0,null,null,"",null,0,null,null,null,null,null,"","",""]
[null,0,null,null,"",null,0,null,null,null,null,null,"","",""]
[null,0,null,null,"",null,0,null,null,null,null,null,"","",""]
[null,0,null,null,"",null,0,null,null,null,null,null,"","",""]
[null,0,null,null,"",null,0,null,null,null,null,null,"","",""]
[null,0,null,null,"",null,0,null,null,null,null,null,"","",""]
[null,0,null,null,"",null,0,null,null,null,null,null,"","",""]
[null,0,null,null,"",null,0,null,null,null,null,null,"","",""]
[null,0,null,null,"",null,0,null,null,null,null,null,"","",""]
[null,0,null,null,"",null,0,null,null,null,null,null,"","",""]
[null,0,null,null,"",null,0,null,null,null,null,null,"","",""]
[null,0,null,null,"",null,0,null,null,null,null,null,"","",""]
[null,0,null,null,"",null,0,null,null,null,null,null,"","",""]
[null,0,null,null,"",null,0,null,null,null,null,null,"","",""]
[null,0,null,null,"",null,0,null,null,null,null,null,"","",""]
[null,0,null,null,"",null,0,null,null,null,null,null,"","",""]
[null,0,null,null,"",null,0,null,null,null,null,null,"","",""]
[null,0,null,null,"",null,0,null,null,null,null,null,"","",""]
[null,0,null,null,"",null,0,null,null,null,null,null,"","",""]
[null,0,null,null,"",null,0,null,null,null,null,null,"","",""]
[null,0,null,null,"",null,0,null,null,null,null,null,"","",""]
[null,0,null,null,"",null,0,null,null,null,null,null,"","",""]
[null,0,null,null,"",null,0,null,null,null,null,null,"","",""]
[null,0,null,null,"",null,0,null,null,null,null,null,"","",""]
[null,0,null,null,"",null,0,null,null,null,null,null,"","",""]
[null,0,null,null,"",null,0,null,null,null,null,null,"","",""]
[null,0,null,null,"",null,0,null,null,null,null,null,"","",""]
[null,0,null,null,"",null,0,null,null,null,null,null,"","",""]
[null,0,null,null,"",null,0,null,null,null,null,null,"","",""]
[null,0,null,null,"",null,0,null,null,null,null,null,"","",""]
[null,0,null,null,"",null,0,null,null,null,null,null,"","",""]
[null,0,null,null,"",null,0,null,null,null,null,null,"","",""]
[null,0,null,null,"",null,0,null,null,null,null,null,"","",""]
[null,0,null,null,"",null,0,null,null,null,null,null,"","",""]
[null,0,null,null,"",null,0,null,null,null,null,null,"","",""]
[null,0,null,null,"",null,0,null,null,null,null,null,"","",""]
[null,0,null,null,"",null,0,null,null,null,null,null,"","",""]
[null,0,null,null,"",null,0,null,null,null,null,null,"","",""]
[null,0,null,null,"",null,0,null,null,null,null,null,"","",""]
[null,0,null,null,"",null,0,null,null,null,null,null,"","",""]
[null,0,null,null,"",null,0,null,null,null,null,null,"","",""]
[null,0,null,null,"",null,0,null,null,null,null,null,"","",""]
[null,0,null,null,"",null,0,null,null,null,null,null,"","",""]
[null,0,null,null,"",null,0,null,null,null,null,null,"","",""]
[null,0,null,null,"",null,0,null,null,null,null,null,"","",""]
[null,0,null,null,"",null,0,null,null,null,null,null,"","",""]
[null,0,null,null,"",null,0,null,null,null,null,null,"","",""]
[null,0,null,null,"",null,0,null,null,null,null,null,"","",""]
[null,0,null,null,"",null,0,null,null,null,null,null,"","",""]
[null,0,null,null,"",null,0,null,null,null,null,null,"","",""]
[null,0,null,null,"",null,0,null,null,null,null,null,"","",""]
[null,0,null,null,"",null,0,null,null,null,null,null,"","",""]
[null,0,null,null,"",null,0,null,null,null,null,null,"","",""]
[null,0,null,null,"",null,{"$f":"IFERROR(VLOOKUP(M905,tblCENOVNIK,3, FALSE),0)+IFERROR(VLOOKUP(N905,tblCENOVNIK,3, FALSE),0)+IFERROR(VLOOKUP(O905,tblCENOVNIK,3, FALSE),0)","v":0},null,null,null,null,null,"","",""]
[null,0,null,null,"",null,0,null,null,null,null,null,"","",""]
[null,0,null,null,"",null,0,null,null,null,null,null,"","",""]
[null,0,null,null,"",null,0,null,null,null,null,null,{"$f":"IFERROR(LEFT(E908,SEARCH(\",\",E908)-1),E908)","v":""},{"$f":"IFERROR(TRIM(IFERROR(MID(E908,SEARCH(\",\",E908)+1,SEARCH(\",\",E908,SEARCH(\",\",E908)+1)-SEARCH(\",\",E908)-1),\"\")),\"\")","v":""},{"$f":"IFERROR(TRIM(IF(LEN(E908)-LEN(SUBSTITUTE(E908,\",\",\"\"))=1,RIGHT(E908,LEN(E908)-SEARCH(\",\",E908)),RIGHT(E908,LEN(E908)-SEARCH(\",\",E908,SEARCH(\",\",E908)+1)))),\"\")","v":""}]
[null,0,null,null,"",null,0,null,null,null,null,null,"","",""]
[null,0,null,null,"",null,0,null,null,null,null,null,"","",""]
[null,0,null,null,"",null,0,null,null,null,null,null,"","",""]
[null,0,null,null,"",null,0,null,null,null,null,null,"","",""]
[null,0,null,null,"",null,0,null,null,null,null,null,"","",""]
[null,0,null,null,"",null,0,null,null,null,null,null,"","",""]
[null,0,null,null,"",null,0,null,null,null,null,null,"","",""]
[null,0,null,null,"",null,0,null,null,null,null,null,"","",""]
[null,0,null,null,"",null,0,null,null,null,null,null,"","",""]
[null,0,null,null,"",null,0,null,null,null,null,null,"","",""]
[null,0,null,null,"",null,0,null,null,null,null,null,"","",""]
[null,0,null,null,"",null,0,null,null,null,null,null,"","",""]
[null,0,null,null,"",null,0,null,null,null,null,null,"","",""]
[null,0,null,null,"",null,0,null,null,null,null,null,"","",""]
[null,0,null,null,"",null,0,null,null,null,null,null,"","",""]
[null,0,null,null,"",null,0,null,null,null,null,null,"","",""]
[null,0,null,null,"",null,0,null,null,null,null,null,"","",""]
[null,0,null,null,"",null,0,null,null,null,null,null,"","",""]
[null,0,null,null,"",null,0,null,null,null,null,null,"","",""]
[null,0,null,null,"",null,0,null,null,null,null,null,"","",""]
[null,0,null,null,"",null,0,null,null,null,null,null,"","",""]
[null,0,null,null,"",null,0,null,null,null,null,null,"","",""]
[null,0,null,null,"",null,0,null,null,null,null,null,"","",""]
[null,0,null,null,"",null,0,null,null,null,null,null,"","",""]
[null,0,null,null,"",null,0,null,null,null,null,null,"","",""]
[null,0,null,null,"",null,0,null,null,null,null,null,"","",""]
[null,0,null,null,"",null,0,null,null,null,null,null,"","",""]
[null,0,null,null,"",null,0,null,null,null,null,null,"","",""]
[null,0,null,null,"",null,0,null,null,null,null,null,"","",""]
[null,0,null,null,"",null,0,null,null,null,null,null,"","",""]
[null,0,null,null,"",null,0,null,null,null,null,null,"","",""]
[null,0,null,null,"",null,0,null,null,null,null,null,"","",""]
[null,0,null,null,"",null,0,null,null,null,null,null,"","",""]
[null,0,null,null,"",null,0,null,null,null,null,null,"","",""]
[null,0,null,null,"",null,0,null,null,null,null,null,"","",""]
[null,0,null,null,"",null,0,null,null,null,null,null,"","",""]
[null,0,null,null,"",null,0,null,null,null,null,null,"","",""]
[null,0,null,null,"",null,0,null,null,null,null,null,"","",""]
[null,0,null,null,"",null,0,null,null,null,null,null,"","",""]
[null,0,null,null,"",null,0,null,null,null,null,null,"","",""]
[null,0,null,null,"",null,0,null,null,null,null,null,"","",""]
[null,0,null,null,"",null,0,null,null,null,null,null,"","",""]
[null,0,null,null,"",null,0,null,null,null,null,null,"","",""]
[null,0,null,null,"",null,0,null,null,null,null,null,"","",""]
[null,0,null,null,"",null,0,null,null,null,null,null,"","",""]
[null,0,null,null,"",null,0,null,null,null,null,null,"","",""]
[null,0,null,null,"",null,0,null,null,null,null,null,"","",""]
[null,0,null,null,"",null,0,null,null,null,null,null,"","",""]
[null,0,null,null,"",null,0,null,null,null,null,null,"","",""]
[null,0,null,null,"",null,0,null,null,null,null,null,"","",""]
[null,0,null,null,"",null,0,null,null,null,null,null,"","",""]
[null,0,null,null,"",null,0,null,null,null,null,null,"","",""]
[null,0,null,null,"",null,0,null,null,null,null,null,"","",""]
[null,0,null,null,"",null,0,null,null,null,null,null,"","",""]
[null,0,null,null,"",null,0,null,null,null,null,null,"","",""]
[null,0,null,null,"",null,0,null,null,null,null,null,"","",""]
[null,0,null,null,"",null,0,null,null,null,null,null,"","",""]
[null,0,null,null,"",null,0,null,null,null,null,null,"","",""]
[null,0,null,null,"",null,0,null,null,null,null,null,"","",""]
[null,0,null,null,"",null,0,null,null,null,null,null,"","",""]
[null,0,null,null,"",null,{"$f":"IFERROR(VLOOKUP(M969,tblCENOVNIK,3, FALSE),0)+IFERROR(VLOOKUP(N969,tblCENOVNIK,3, FALSE),0)+IFERROR(VLOOKUP(O969,tblCENOVNIK,3, FALSE),0)","v":0},null,null,null,null,null,"","",""]
[null,0,null,null,"",null,0,null,null,null,null,null,"","",""]
[null,0,null,null,"",null,0,null,null,null,null,null,"","",""]
[null,0,null,null,"",null,0,null,null,null,null,null,{"$f":"IFERROR(LEFT(E972,SEARCH(\",\",E972)-1),E972)","v":""},{"$f":"IFERROR(TRIM(IFERROR(MID(E972,SEARCH(\",\",E972)+1,SEARCH(\",\",E972,SEARCH(\",\",E972)+1)-SEARCH(\",\",E972)-1),\"\")),\"\")","v":""},{"$f":"IFERROR(TRIM(IF(LEN(E972)-LEN(SUBSTITUTE(E972,\",\",\"\"))=1,RIGHT(E972,LEN(E972)-SEARCH(\",\",E972)),RIGHT(E972,LEN(E972)-SEARCH(\",\",E972,SEARCH(\",\",E972)+1)))),\"\")","v":""}]
[null,0,null,null,"",null,0,null,null,null,null,null,"","",""]
[null,0,null,null,"",null,0,null,null,null,null,null,"","",""]
[null,0,null,null,"",null,0,null,null,null,null,null,"","",""]
[null,0,null,null,"",null,0,null,null,null,null,null,"","",""]
[null,0,null,null,"",null,0,null,null,null,null,null,"","",""]
[null,0,null,null,"",null,0,null,null,null,null,null,"","",""]
[null,0,null,null,"",null,0,null,null,null,null,null,"","",""]
[null,0,null,null,"",null,0,null,null,null,null,null,"","",""]
[null,0,null,null,"",null,0,null,null,null,null,null,"","",""]
[null,0,null,null,"",null,0,null,null,null,null,null,"","",""]
[null,0,null,null,"",null,0,null,null,null,null,null,"","",""]
[null,0,null,null,"",null,0,null,null,null,null,null,"","",""]
[null,0,null,null,"",null,0,null,null,null,null,null,"","",""]
[null,0,null,null,"",null,0,null,null,null,null,null,"","",""]
[null,0,null,null,"",null,0,null,null,null,null,null,"","",""]
[null,0,null,null,"",null,0,null,null,null,null,null,"","",""]
[null,0,null,null,"",null,0,null,null,null,null,null,"","",""]
[null,0,null,null,"",null,0,null,null,null,null,null,"","",""]
[null,0,null,null,"",null,0,null,null,null,null,null,"","",""]
[null,0,null,null,"",null,0,null,null,null,null,null,"","",""]
[null,0,null,null,"",null,0,null,null,null,null,null,"","",""]
[null,0,null,null,"",null,0,null,null,null,null,null,"","",""]
[null,0,null,null,"",null,0,null,null,null,null,null,"","",""]
[null,0,null,null,"",null,0,null,null,null,null,null,"","",""]
[null,0,null,null,"",null,0,null,null,null,null,null,"","",""]
[null,0,null,null,"",null,0,null,null,null,null,null,"","",""]
[null,0,null,null,"",null,0,null,null,null,null,null,"","",""]
[null,0,null,null,"",null,{"$f":"IFERROR(VLOOKUP(M1000,tblCENOVNIK,3, FALSE),0)+IFERROR(VLOOKUP(N1000,tblCENOVNIK,3, FALSE),0)+IFERROR(VLOOKUP(O1000,tblCENOVNIK,3, FALSE),0)","v":0},null,null,null,null,null,{"$f":"IFERROR(LEFT(E1000,SEARCH(\",\",E1000)-1),E1000)","v":""},{"$f":"IFERROR(TRIM(IFERROR(MID(E1000,SEARCH(\",\",E1000)+1,SEARCH(\",\",E1000,SEARCH(\",\",E1000)+1)-SEARCH(\",\",E1000)-1),\"\")),\"\")","v":""},{"$f":"IFERROR(TRIM(IF(LEN(E1000)-LEN(SUBSTITUTE(E1000,\",\",\"\"))=1,RIGHT(E1000,LEN(E1000)-SEARCH(\",\",E1000)),RIGHT(E1000,LEN(E1000)-SEARCH(\",\",E1000,SEARCH(\",\",E1000)+1)))),\"\")","v":""}]

{"sheet":"cenovnik-terapija","index":2,"n_rows":34,"n_cols":4,"rows_kept":34,"cut":false,"hidden":false,"merged":[]}
[null,null,"Cenovnik usluga"]
[]
[null,null,"FIZIOTERAPIJA"]
[null,"FTh","Fizikalna terapija\n(sve vrste struja, laser, magnet, ultrazvuk)",1000]
[null,"KTh","Kineziterapija\n(kineziterapijske vežbe, preoperativna priprema)",1100]
[null,"FTh + KTh","Fizikalna + kineziterapija\n(kineziterapijske vežbe, preoperativna priprema)",1200]
[null,"DN","Dry Needling\n(suva punkcija u kombinaciji sa strujom)",1300]
[null,"Ktape","Kinesiotaping\n(lepljenje naše kinesiology trake)",1400]
[null,"TECAR","TECAR terapija\n(može se kombinovati uz aktivno vežbanje i ergon alate)",1500]
[null,"SW","Shock Wave terapija",1600]
[null,null,"OPORAVAK"]
[null,"GR","Game Ready",1700]
[null,"Normatec","Normatec",1800]
[null,"Masaža","Manuelna masaža",1900]
[null,"Sauna","Sauna",2000]
[null,"Recovery 1","Mesečni paket\n(podrazumeva sve gore navedeno 4-5 puta mesečno)",2100]
[null,"Recovery 12","Godišnji paket\n(podrazumeva sve iz mesečnog paketa tokom cele godine)",2200]
[]
[null,null,"REHABILITACIJA"]
[null,"Rehab 1","Rehabilitacioni dan",2300]
[null,"Rehab 30","Rehabilitacioni mesec ",2400]
[null,"Patronaža","Kućna poseta\n(fizikalna terapija, kineziterapija, compex stimulacija, masaža)",2500]
[]
[null,null,"MANUELNA TEHNIKA"]
[null,"Mulligan","Mulligan Concept",2600]
[null,"Ergon","Ergon IASTM",2700]
[null,"HVLA","HVLA manipulacija",2800]
[]
[null,null,"U PONUDI JOŠ"]
[null,null,"Voda",1]
[null,null,"Kafa",1]
[null,null,"Čaj",1]
[null,null,"Isoplus napitak",1]
[null,null,"Proteinski šejk",1]